Workbook

Sheet read me
A1: Read Me
A8: 1)
A9: Dear User, thank you for using my template. Please remove sample entries from the sheets "Prevention", "Appraisal", "Internal" and "External".
A12: 2)
A13: Enter the start date of your project in field "D8" on the "Summary". Other sheets will update automatically.
A15: 3)
A16: Make your entries on the sheets "Prevention", "Appraisal", "Internal" and "External" only. The "Summary" and "Dashboard" will update from their.
A19: 4)
A20: Verify that all formulas are working as expected.

Sheet Dashboard
K1: The total Cost of Quality (CoQ) is the sum of below individual cost.
K13: =Prevention!E1 -> These are cost related to all activities to prevent defects from occurring and to keep appraisal and failure to a minimum.
K25: =Appraisal!E1 -> These are costs incurred while monitoring and controlling. They include execution inspections, result control, field monitoring, supplier surveillance, material receipt inspection, and other planned activities to assure compliance with a certain requirement.
K37: =Internal!E1 -> These are costs that would disappear if no defects existed prior to selivery to the client. These costs include rework, scrap, re-check or re-inspection, corrective action, re-design, vendor defects, and other like defects.
K49: =External!E1 -> These are costs that would disappear if no defects existed in the product after delivery to the client. These costs include warranty and repair costs, product liability, and product recall.

Sheet Summary
A2: Total | B2: Budget | C2: Month | D2: =D10+D16+D22+D28 -> 2,100 | E2: =E10+E16+E22+E28 -> 4,100 | F2: 4,750 | G2: 5,000 | H2: 5,200 | I2: 5,200 | J2: 5,200 | K2: 4,950 | L2: 4,950 | M2: 4,950 | N2: 4,750 | O2: 4,750 | P2: 4,500 | Q2: 4,500 | R2: 4,500 | S2: 4,500 | T2: 4,500 | U2: 4,500 | V2: 4,500 | W2: 4,500 | X2: 4,500 | Y2: 4,500 | Z2: 4,500 | AA2: 4,500 | AB2: 4,500 | AC2: 4,500 | AD2: 4,500 | AE2: 4,500 | AF2: 4,500 | AG2: 4,500 | AH2: 4,500 | AI2: 2,100 | AJ2: 1,000 | AK2: 1,000 | AL2: 1,000 | AM2: 1,000 | AN2: 1,000
C3: Cum. | D3: =D2 -> 2,100 | E3: =D3+E2 -> 6,200 | F3: =E3+F2 -> 10,950 | G3: 15,950 | H3: 21,150 | I3: 26,350 | J3: 31,550 | K3: 36,500 | L3: 41,450 | M3: 46,400 | N3: 51,150 | O3: 55,900 | P3: 60,400 | Q3: 64,900 | R3: 69,400 | S3: 73,900 | T3: 78,400 | U3: 82,900 | V3: 87,400 | W3: 91,900 | X3: 96,400 | Y3: 100,900 | Z3: 105,400 | AA3: 109,900 | AB3: 114,400 | AC3: 118,900 | AD3: 123,400 | AE3: 127,900 | AF3: 132,400 | AG3: 136,900 | AH3: 141,400 | AI3: 143,500 | AJ3: 144,500 | AK3: 145,500 | AL3: 146,500 | AM3: 147,500 | AN3: 148,500
B4: Actual Cost | C4: Month | D4: =SUM(D12+D18+D24+D30) -> 1,690 | E4: =SUM(E12+E18+E24+E30) -> 3,529 | F4: 4,710 | G4: 4,305 | H4: 2,630 | I4: 0 | J4: 0 | K4: 0 | L4: 0 | M4: 0 | N4: 0 | O4: 0 | P4: 0 | Q4: 0 | R4: 0 | S4: 0 | T4: 0 | U4: 0 | V4: 0 | W4: 0 | X4: 0 | Y4: 0 | Z4: 0 | AA4: 0 | AB4: 0 | AC4: 0 | AD4: 0 | AE4: 0 | AF4: 0 | AG4: 0 | AH4: 0 | AI4: 0 | AJ4: 0 | AK4: 0 | AL4: 0 | AM4: 0 | AN4: 0
C5: Cum. | D5: =D4 -> 1,690 | E5: =D5+E4 -> 5,219 | F5: =E5+F4 -> 9,929 | G5: 14,234 | H5: 16,864 | I5: 16,864 | J5: 16,864 | K5: 16,864 | L5: 16,864 | M5: 16,864 | N5: 16,864 | O5: 16,864 | P5: 16,864 | Q5: 16,864 | R5: 16,864 | S5: 16,864 | T5: 16,864 | U5: 16,864 | V5: 16,864 | W5: 16,864 | X5: 16,864 | Y5: 16,864 | Z5: 16,864 | AA5: 16,864 | AB5: 16,864 | AC5: 16,864 | AD5: 16,864 | AE5: 16,864 | AF5: 16,864 | AG5: 16,864 | AH5: 16,864 | AI5: 16,864 | AJ5: 16,864 | AK5: 16,864 | AL5: 16,864 | AM5: 16,864 | AN5: 16,864
C6: Avail. | D6: =D3-D5 -> 410 | E6: =E3-E5 -> 981 | F6: 1,021 | G6: 1,716 | H6: 4,286 | I6: 9,486 | J6: 14,686 | K6: 19,636 | L6: 24,586 | M6: 29,536 | N6: 34,286 | O6: 39,036 | P6: 43,536 | Q6: 48,036 | R6: 52,536 | S6: 57,036 | T6: 61,536 | U6: 66,036 | V6: 70,536 | W6: 75,036 | X6: 79,536 | Y6: 84,036 | Z6: 88,536 | AA6: 93,036 | AB6: 97,536 | AC6: 102,036 | AD6: 106,536 | AE6: 111,036 | AF6: 115,536 | AG6: 120,036 | AH6: 124,536 | AI6: 126,636 | AJ6: 127,636 | AK6: 128,636 | AL6: 129,636 | AM6: 130,636 | AN6: 131,636
D8: 2014-07-01 | E8: =DATE(YEAR(D8),MONTH(D8)+1,DAY(D8)) -> 2014-08-01 | F8: =EDATE(E8,1) -> 2014-09-01 | G8: 2014-10-01 | H8: 2014-11-01 | I8: 2014-12-01 | J8: 2015-01-01 | K8: 2015-02-01 | L8: 2015-03-01 | M8: 2015-04-01 | N8: 2015-05-01 | O8: 2015-06-01 | P8: 2015-07-01 | Q8: 2015-08-01 | R8: 2015-09-01 | S8: 2015-10-01 | T8: 2015-11-01 | U8: 2015-12-01 | V8: 2016-01-01 | W8: 2016-02-01 | X8: 2016-03-01 | Y8: 2016-04-01 | Z8: 2016-05-01 | AA8: 2016-06-01 | AB8: 2016-07-01 | AC8: 2016-08-01 | AD8: 2016-09-01 | AE8: 2016-10-01 | AF8: 2016-11-01 | AG8: 2016-12-01 | AH8: 2017-01-01 | AI8: 2017-02-01 | AJ8: 2017-03-01 | AK8: 2017-04-01 | AL8: 2017-05-01 | AM8: 2017-06-01 | AN8: 2017-07-01
A10: Prevention | B10: Budget | C10: Month | D10: =Prevention!E6 -> 100 | E10: =Prevention!F6 -> 100 | F10: =Prevention!G6 -> 250 | G10: =Prevention!H6 -> 500 | H10: =Prevention!I6 -> 700 | I10: =Prevention!J6 -> 700 | J10: =Prevention!K6 -> 700 | K10: =Prevention!L6 -> 700 | L10: =Prevention!M6 -> 700 | M10: =Prevention!N6 -> 700 | N10: =Prevention!O6 -> 500 | O10: =Prevention!P6 -> 500 | P10: =Prevention!Q6 -> 500 | Q10: =Prevention!R6 -> 500 | R10: =Prevention!S6 -> 500 | S10: =Prevention!T6 -> 500 | T10: =Prevention!U6 -> 500 | U10: =Prevention!V6 -> 500 | V10: =Prevention!W6 -> 500 | W10: =Prevention!X6 -> 500 | X10: =Prevention!Y6 -> 500 | Y10: =Prevention!Z6 -> 500 | Z10: =Prevention!AA6 -> 500 | AA10: =Prevention!AB6 -> 500 | AB10: =Prevention!AC6 -> 500 | AC10: =Prevention!AD6 -> 500 | AD10: =Prevention!AE6 -> 500 | AE10: =Prevention!AF6 -> 500 | AF10: =Prevention!AG6 -> 500 | AG10: =Prevention!AH6 -> 500 | AH10: =Prevention!AI6 -> 500 | AI10: =Prevention!AJ6 -> 100 | AJ10: =Prevention!AK6 -> 0 | AK10: =Prevention!AL6 -> 0 | AL10: =Prevention!AM6 -> 0 | AM10: =Prevention!AN6 -> 0 | AN10: =Prevention!AO6 -> 0
C11: Cum. | D11: =D10 -> 100 | E11: =D11+E10 -> 200 | F11: =E11+F10 -> 450 | G11: 950 | H11: 1,650 | I11: 2,350 | J11: 3,050 | K11: 3,750 | L11: 4,450 | M11: 5,150 | N11: 5,650 | O11: 6,150 | P11: 6,650 | Q11: 7,150 | R11: 7,650 | S11: 8,150 | T11: 8,650 | U11: 9,150 | V11: 9,650 | W11: 10,150 | X11: 10,650 | Y11: 11,150 | Z11: 11,650 | AA11: 12,150 | AB11: 12,650 | AC11: 13,150 | AD11: 13,650 | AE11: 14,150 | AF11: 14,650 | AG11: 15,150 | AH11: 15,650 | AI11: 15,750 | AJ11: 15,750 | AK11: 15,750 | AL11: 15,750 | AM11: 15,750 | AN11: 15,750
B12: Actual Cost | C12: Month | D12: =Prevention!E7 -> 90 | E12: =Prevention!F7 -> 89 | F12: =Prevention!G7 -> 210 | G12: =Prevention!H7 -> 455 | H12: =Prevention!I7 -> 640 | I12: =Prevention!J7 -> 0 | J12: =Prevention!K7 -> 0 | K12: =Prevention!L7 -> 0 | L12: =Prevention!M7 -> 0 | M12: =Prevention!N7 -> 0 | N12: =Prevention!O7 -> 0 | O12: =Prevention!P7 -> 0 | P12: =Prevention!Q7 -> 0 | Q12: =Prevention!R7 -> 0 | R12: =Prevention!S7 -> 0 | S12: =Prevention!T7 -> 0 | T12: =Prevention!U7 -> 0 | U12: =Prevention!V7 -> 0 | V12: =Prevention!W7 -> 0 | W12: =Prevention!X7 -> 0 | X12: =Prevention!Y7 -> 0 | Y12: =Prevention!Z7 -> 0 | Z12: =Prevention!AA7 -> 0 | AA12: =Prevention!AB7 -> 0 | AB12: =Prevention!AC7 -> 0 | AC12: =Prevention!AD7 -> 0 | AD12: =Prevention!AE7 -> 0 | AE12: =Prevention!AF7 -> 0 | AF12: =Prevention!AG7 -> 0 | AG12: =Prevention!AH7 -> 0 | AH12: =Prevention!AI7 -> 0 | AI12: =Prevention!AJ7 -> 0 | AJ12: =Prevention!AK7 -> 0 | AK12: =Prevention!AL7 -> 0 | AL12: =Prevention!AM7 -> 0 | AM12: =Prevention!AN7 -> 0 | AN12: =Prevention!AO7 -> 0
C13: Cum. | D13: =D12 -> 90 | E13: =D13+E12 -> 179 | F13: =E13+F12 -> 389 | G13: 844 | H13: 1,484 | I13: 1,484 | J13: 1,484 | K13: 1,484 | L13: 1,484 | M13: 1,484 | N13: 1,484 | O13: 1,484 | P13: 1,484 | Q13: 1,484 | R13: 1,484 | S13: 1,484 | T13: 1,484 | U13: 1,484 | V13: 1,484 | W13: 1,484 | X13: 1,484 | Y13: 1,484 | Z13: 1,484 | AA13: 1,484 | AB13: 1,484 | AC13: 1,484 | AD13: 1,484 | AE13: 1,484 | AF13: 1,484 | AG13: 1,484 | AH13: 1,484 | AI13: 1,484 | AJ13: 1,484 | AK13: 1,484 | AL13: 1,484 | AM13: 1,484 | AN13: 1,484
C14: Avail. | D14: =D11-D13 -> 10 | E14: =E11-E13 -> 21 | F14: =F11-F13 -> 61 | G14: 106 | H14: 166 | I14: 866 | J14: 1,566 | K14: 2,266 | L14: 2,966 | M14: 3,666 | N14: 4,166 | O14: 4,666 | P14: 5,166 | Q14: 5,666 | R14: 6,166 | S14: 6,666 | T14: 7,166 | U14: 7,666 | V14: 8,166 | W14: 8,666 | X14: 9,166 | Y14: 9,666 | Z14: 10,166 | AA14: 10,666 | AB14: 11,166 | AC14: 11,666 | AD14: 12,166 | AE14: 12,666 | AF14: 13,166 | AG14: 13,666 | AH14: 14,166 | AI14: 14,266 | AJ14: 14,266 | AK14: 14,266 | AL14: 14,266 | AM14: 14,266 | AN14: 14,266
A16: Appraisal | B16: Budget | C16: Month | D16: =Appraisal!E6 -> 1,000 | E16: =Appraisal!F6 -> 3,000 | F16: =Appraisal!G6 -> 3,000 | G16: =Appraisal!H6 -> 3,000 | H16: =Appraisal!I6 -> 3,000 | I16: =Appraisal!J6 -> 3,000 | J16: =Appraisal!K6 -> 3,000 | K16: =Appraisal!L6 -> 3,000 | L16: =Appraisal!M6 -> 3,000 | M16: =Appraisal!N6 -> 3,000 | N16: =Appraisal!O6 -> 3,000 | O16: =Appraisal!P6 -> 3,000 | P16: =Appraisal!Q6 -> 3,000 | Q16: =Appraisal!R6 -> 3,000 | R16: =Appraisal!S6 -> 3,000 | S16: =Appraisal!T6 -> 3,000 | T16: =Appraisal!U6 -> 3,000 | U16: =Appraisal!V6 -> 3,000 | V16: =Appraisal!W6 -> 3,000 | W16: =Appraisal!X6 -> 3,000 | X16: =Appraisal!Y6 -> 3,000 | Y16: =Appraisal!Z6 -> 3,000 | Z16: =Appraisal!AA6 -> 3,000 | AA16: =Appraisal!AB6 -> 3,000 | AB16: =Appraisal!AC6 -> 3,000 | AC16: =Appraisal!AD6 -> 3,000 | AD16: =Appraisal!AE6 -> 3,000 | AE16: =Appraisal!AF6 -> 3,000 | AF16: =Appraisal!AG6 -> 3,000 | AG16: =Appraisal!AH6 -> 3,000 | AH16: =Appraisal!AI6 -> 3,000 | AI16: =Appraisal!AJ6 -> 1,000 | AJ16: =Appraisal!AK6 -> 0 | AK16: =Appraisal!AL6 -> 0 | AL16: =Appraisal!AM6 -> 0 | AM16: =Appraisal!AN6 -> 0 | AN16: =Appraisal!AO6 -> 0
C17: Cum. | D17: =D16 -> 1,000 | E17: =D17+E16 -> 4,000 | F17: =E17+F16 -> 7,000 | G17: 10,000 | H17: 13,000 | I17: 16,000 | J17: 19,000 | K17: 22,000 | L17: 25,000 | M17: 28,000 | N17: 31,000 | O17: 34,000 | P17: 37,000 | Q17: 40,000 | R17: 43,000 | S17: 46,000 | T17: 49,000 | U17: 52,000 | V17: 55,000 | W17: 58,000 | X17: 61,000 | Y17: 64,000 | Z17: 67,000 | AA17: 70,000 | AB17: 73,000 | AC17: 76,000 | AD17: 79,000 | AE17: 82,000 | AF17: 85,000 | AG17: 88,000 | AH17: 91,000 | AI17: 92,000 | AJ17: 92,000 | AK17: 92,000 | AL17: 92,000 | AM17: 92,000 | AN17: 92,000
B18: Actual Cost | C18: Month | D18: =Appraisal!E7 -> 900 | E18: =Appraisal!F7 -> 2,790 | F18: =Appraisal!G7 -> 3,100 | G18: =Appraisal!H7 -> 2,950 | H18: =Appraisal!I7 -> 1,990 | I18: =Appraisal!J7 -> 0 | J18: =Appraisal!K7 -> 0 | K18: =Appraisal!L7 -> 0 | L18: =Appraisal!M7 -> 0 | M18: =Appraisal!N7 -> 0 | N18: =Appraisal!O7 -> 0 | O18: =Appraisal!P7 -> 0 | P18: =Appraisal!Q7 -> 0 | Q18: =Appraisal!R7 -> 0 | R18: =Appraisal!S7 -> 0 | S18: =Appraisal!T7 -> 0 | T18: =Appraisal!U7 -> 0 | U18: =Appraisal!V7 -> 0 | V18: =Appraisal!W7 -> 0 | W18: =Appraisal!X7 -> 0 | X18: =Appraisal!Y7 -> 0 | Y18: =Appraisal!Z7 -> 0 | Z18: =Appraisal!AA7 -> 0 | AA18: =Appraisal!AB7 -> 0 | AB18: =Appraisal!AC7 -> 0 | AC18: =Appraisal!AD7 -> 0 | AD18: =Appraisal!AE7 -> 0 | AE18: =Appraisal!AF7 -> 0 | AF18: =Appraisal!AG7 -> 0 | AG18: =Appraisal!AH7 -> 0 | AH18: =Appraisal!AI7 -> 0 | AI18: =Appraisal!AJ7 -> 0 | AJ18: =Appraisal!AK7 -> 0 | AK18: =Appraisal!AL7 -> 0 | AL18: =Appraisal!AM7 -> 0 | AM18: =Appraisal!AN7 -> 0 | AN18: =Appraisal!AO7 -> 0
C19: Cum. | D19: =D18 -> 900 | E19: =D19+E18 -> 3,690 | F19: =E19+F18 -> 6,790 | G19: 9,740 | H19: 11,730 | I19: 11,730 | J19: 11,730 | K19: 11,730 | L19: 11,730 | M19: 11,730 | N19: 11,730 | O19: 11,730 | P19: 11,730 | Q19: 11,730 | R19: 11,730 | S19: 11,730 | T19: 11,730 | U19: 11,730 | V19: 11,730 | W19: 11,730 | X19: 11,730 | Y19: 11,730 | Z19: 11,730 | AA19: 11,730 | AB19: 11,730 | AC19: 11,730 | AD19: 11,730 | AE19: 11,730 | AF19: 11,730 | AG19: 11,730 | AH19: 11,730 | AI19: 11,730 | AJ19: 11,730 | AK19: 11,730 | AL19: 11,730 | AM19: 11,730 | AN19: =AM19+AN18 -> 11,730
C20: Avail. | D20: =D16-D18 -> 100 | E20: =E16-E18 -> 210 | F20: -100 | G20: 50 | H20: 1,010 | I20: 3,000 | J20: 3,000 | K20: 3,000 | L20: 3,000 | M20: 3,000 | N20: 3,000 | O20: 3,000 | P20: 3,000 | Q20: 3,000 | R20: 3,000 | S20: 3,000 | T20: 3,000 | U20: 3,000 | V20: 3,000 | W20: 3,000 | X20: 3,000 | Y20: 3,000 | Z20: 3,000 | AA20: 3,000 | AB20: 3,000 | AC20: 3,000 | AD20: 3,000 | AE20: 3,000 | AF20: 3,000 | AG20: 3,000 | AH20: 3,000 | AI20: 1,000 | AJ20: 0 | AK20: 0 | AL20: 0 | AM20: 0 | AN20: 0
A22: Internal | B22: Budget | C22: Month | D22: =Internal!E6 -> 1,000 | E22: =Internal!F6 -> 1,000 | F22: =Internal!G6 -> 1,500 | G22: =Internal!H6 -> 1,500 | H22: =Internal!I6 -> 1,500 | I22: =Internal!J6 -> 1,500 | J22: =Internal!K6 -> 1,500 | K22: =Internal!L6 -> 1,250 | L22: =Internal!M6 -> 1,250 | M22: =Internal!N6 -> 1,250 | N22: =Internal!O6 -> 1,250 | O22: =Internal!P6 -> 1,250 | P22: =Internal!Q6 -> 1,000 | Q22: =Internal!R6 -> 1,000 | R22: =Internal!S6 -> 1,000 | S22: =Internal!T6 -> 1,000 | T22: =Internal!U6 -> 1,000 | U22: =Internal!V6 -> 1,000 | V22: =Internal!W6 -> 1,000 | W22: =Internal!X6 -> 1,000 | X22: =Internal!Y6 -> 1,000 | Y22: =Internal!Z6 -> 1,000 | Z22: =Internal!AA6 -> 1,000 | AA22: =Internal!AB6 -> 1,000 | AB22: =Internal!AC6 -> 1,000 | AC22: =Internal!AD6 -> 1,000 | AD22: =Internal!AE6 -> 1,000 | AE22: =Internal!AF6 -> 1,000 | AF22: =Internal!AG6 -> 1,000 | AG22: =Internal!AH6 -> 1,000 | AH22: =Internal!AI6 -> 1,000 | AI22: =Internal!AJ6 -> 1,000 | AJ22: =Internal!AK6 -> 1,000 | AK22: =Internal!AL6 -> 1,000 | AL22: =Internal!AM6 -> 1,000 | AM22: =Internal!AN6 -> 1,000 | AN22: =Internal!AO6 -> 1,000
C23: Cum. | D23: =D22 -> 1,000 | E23: =D23+E22 -> 2,000 | F23: =E23+F22 -> 3,500 | G23: 5,000 | H23: 6,500 | I23: 8,000 | J23: 9,500 | K23: 10,750 | L23: 12,000 | M23: 13,250 | N23: 14,500 | O23: 15,750 | P23: 16,750 | Q23: 17,750 | R23: 18,750 | S23: 19,750 | T23: 20,750 | U23: 21,750 | V23: 22,750 | W23: 23,750 | X23: 24,750 | Y23: 25,750 | Z23: 26,750 | AA23: 27,750 | AB23: 28,750 | AC23: 29,750 | AD23: 30,750 | AE23: 31,750 | AF23: 32,750 | AG23: 33,750 | AH23: 34,750 | AI23: 35,750 | AJ23: 36,750 | AK23: 37,750 | AL23: 38,750 | AM23: 39,750 | AN23: =AM23+AN22 -> 40,750
B24: Actual Cost | C24: Month | D24: =Internal!E7 -> 700 | E24: =Internal!F7 -> 650 | F24: =Internal!G7 -> 1,400 | G24: =Internal!H7 -> 900 | H24: =Internal!I7 -> 0 | I24: =Internal!J7 -> 0 | J24: =Internal!K7 -> 0 | K24: =Internal!L7 -> 0 | L24: =Internal!M7 -> 0 | M24: =Internal!N7 -> 0 | N24: =Internal!O7 -> 0 | O24: =Internal!P7 -> 0 | P24: =Internal!Q7 -> 0 | Q24: =Internal!R7 -> 0 | R24: =Internal!S7 -> 0 | S24: =Internal!T7 -> 0 | T24: =Internal!U7 -> 0 | U24: =Internal!V7 -> 0 | V24: =Internal!W7 -> 0 | W24: =Internal!X7 -> 0 | X24: =Internal!Y7 -> 0 | Y24: =Internal!Z7 -> 0 | Z24: =Internal!AA7 -> 0 | AA24: =Internal!AB7 -> 0 | AB24: =Internal!AC7 -> 0 | AC24: =Internal!AD7 -> 0 | AD24: =Internal!AE7 -> 0 | AE24: =Internal!AF7 -> 0 | AF24: =Internal!AG7 -> 0 | AG24: =Internal!AH7 -> 0 | AH24: =Internal!AI7 -> 0 | AI24: =Internal!AJ7 -> 0 | AJ24: =Internal!AK7 -> 0 | AK24: =Internal!AL7 -> 0 | AL24: =Internal!AM7 -> 0 | AM24: =Internal!AN7 -> 0 | AN24: =Internal!AO7 -> 0
C25: Cum. | D25: =D24 -> 700 | E25: =D25+E24 -> 1,350 | F25: =E25+F24 -> 2,750 | G25: 3,650 | H25: 3,650 | I25: 3,650 | J25: 3,650 | K25: 3,650 | L25: 3,650 | M25: 3,650 | N25: 3,650 | O25: 3,650 | P25: 3,650 | Q25: 3,650 | R25: 3,650 | S25: 3,650 | T25: 3,650 | U25: 3,650 | V25: 3,650 | W25: 3,650 | X25: 3,650 | Y25: 3,650 | Z25: 3,650 | AA25: 3,650 | AB25: 3,650 | AC25: 3,650 | AD25: 3,650 | AE25: 3,650 | AF25: 3,650 | AG25: 3,650 | AH25: 3,650 | AI25: 3,650 | AJ25: 3,650 | AK25: 3,650 | AL25: 3,650 | AM25: 3,650 | AN25: =AM25+AN24 -> 3,650
C26: Avail. | D26: =D22-D24 -> 300 | E26: =E22-E24 -> 350 | F26: =F22-F24 -> 100 | G26: =G22-G24 -> 600 | H26: =H22-H24 -> 1,500 | I26: =I22-I24 -> 1,500 | J26: =J22-J24 -> 1,500 | K26: =K22-K24 -> 1,250 | L26: =L22-L24 -> 1,250 | M26: =M22-M24 -> 1,250 | N26: =N22-N24 -> 1,250 | O26: =O22-O24 -> 1,250 | P26: =P22-P24 -> 1,000 | Q26: =Q22-Q24 -> 1,000 | R26: =R22-R24 -> 1,000 | S26: =S22-S24 -> 1,000 | T26: =T22-T24 -> 1,000 | U26: =U22-U24 -> 1,000 | V26: =V22-V24 -> 1,000 | W26: =W22-W24 -> 1,000 | X26: =X22-X24 -> 1,000 | Y26: =Y22-Y24 -> 1,000 | Z26: =Z22-Z24 -> 1,000 | AA26: =AA22-AA24 -> 1,000 | AB26: =AB22-AB24 -> 1,000 | AC26: =AC22-AC24 -> 1,000 | AD26: =AD22-AD24 -> 1,000 | AE26: =AE22-AE24 -> 1,000 | AF26: =AF22-AF24 -> 1,000 | AG26: =AG22-AG24 -> 1,000 | AH26: =AH22-AH24 -> 1,000 | AI26: =AI22-AI24 -> 1,000 | AJ26: =AJ22-AJ24 -> 1,000 | AK26: =AK22-AK24 -> 1,000 | AL26: =AL22-AL24 -> 1,000 | AM26: =AM22-AM24 -> 1,000 | AN26: =AN22-AN24 -> 1,000
A28: External | B28: Budget | C28: Month | D28: =External!E6 -> 0 | E28: =External!F6 -> 0 | F28: =External!G6 -> 0 | G28: =External!H6 -> 0 | H28: =External!I6 -> 0 | I28: =External!J6 -> 0 | J28: =External!K6 -> 0 | K28: =External!L6 -> 0 | L28: =External!M6 -> 0 | M28: =External!N6 -> 0 | N28: =External!O6 -> 0 | O28: =External!P6 -> 0 | P28: =External!Q6 -> 0 | Q28: =External!R6 -> 0 | R28: =External!S6 -> 0 | S28: =External!T6 -> 0 | T28: =External!U6 -> 0 | U28: =External!V6 -> 0 | V28: =External!W6 -> 0 | W28: =External!X6 -> 0 | X28: =External!Y6 -> 0 | Y28: =External!Z6 -> 0 | Z28: =External!AA6 -> 0 | AA28: =External!AB6 -> 0 | AB28: =External!AC6 -> 0 | AC28: =External!AD6 -> 0 | AD28: =External!AE6 -> 0 | AE28: =External!AF6 -> 0 | AF28: =External!AG6 -> 0 | AG28: =External!AH6 -> 0 | AH28: =External!AI6 -> 0 | AI28: =External!AJ6 -> 0 | AJ28: =External!AK6 -> 0 | AK28: =External!AL6 -> 0 | AL28: =External!AM6 -> 0 | AM28: =External!AN6 -> 0 | AN28: =External!AO6 -> 0
C29: Cum. | D29: =D28 -> 0 | E29: =D29+E28 -> 0 | F29: =E29+F28 -> 0 | G29: 0 | H29: 0 | I29: 0 | J29: 0 | K29: 0 | L29: 0 | M29: 0 | N29: 0 | O29: 0 | P29: 0 | Q29: 0 | R29: 0 | S29: 0 | T29: 0 | U29: 0 | V29: 0 | W29: 0 | X29: 0 | Y29: 0 | Z29: 0 | AA29: 0 | AB29: 0 | AC29: 0 | AD29: 0 | AE29: 0 | AF29: 0 | AG29: 0 | AH29: 0 | AI29: 0 | AJ29: 0 | AK29: 0 | AL29: 0 | AM29: 0 | AN29: =AM29+AN28 -> 0
B30: Actual Cost | C30: Month | D30: =External!E7 -> 0 | E30: =External!F7 -> 0 | F30: =External!G7 -> 0 | G30: =External!H7 -> 0 | H30: =External!I7 -> 0 | I30: =External!J7 -> 0 | J30: =External!K7 -> 0 | K30: =External!L7 -> 0 | L30: =External!M7 -> 0 | M30: =External!N7 -> 0 | N30: =External!O7 -> 0 | O30: =External!P7 -> 0 | P30: =External!Q7 -> 0 | Q30: =External!R7 -> 0 | R30: =External!S7 -> 0 | S30: =External!T7 -> 0 | T30: =External!U7 -> 0 | U30: =External!V7 -> 0 | V30: =External!W7 -> 0 | W30: =External!X7 -> 0 | X30: =External!Y7 -> 0 | Y30: =External!Z7 -> 0 | Z30: =External!AA7 -> 0 | AA30: =External!AB7 -> 0 | AB30: =External!AC7 -> 0 | AC30: =External!AD7 -> 0 | AD30: =External!AE7 -> 0 | AE30: =External!AF7 -> 0 | AF30: =External!AG7 -> 0 | AG30: =External!AH7 -> 0 | AH30: =External!AI7 -> 0 | AI30: =External!AJ7 -> 0 | AJ30: =External!AK7 -> 0 | AK30: =External!AL7 -> 0 | AL30: =External!AM7 -> 0 | AM30: =External!AN7 -> 0 | AN30: =External!AO7 -> 0
C31: Cum. | D31: =D30 -> 0 | E31: =D31+E30 -> 0 | F31: =E31+F30 -> 0 | G31: 0 | H31: 0 | I31: 0 | J31: 0 | K31: 0 | L31: 0 | M31: 0 | N31: 0 | O31: 0 | P31: 0 | Q31: 0 | R31: 0 | S31: 0 | T31: 0 | U31: 0 | V31: 0 | W31: 0 | X31: 0 | Y31: 0 | Z31: 0 | AA31: 0 | AB31: 0 | AC31: 0 | AD31: 0 | AE31: 0 | AF31: 0 | AG31: 0 | AH31: 0 | AI31: 0 | AJ31: 0 | AK31: 0 | AL31: 0 | AM31: 0 | AN31: =AM31+AN30 -> 0
C32: Avail. | D32: =D28-D30 -> 0 | E32: =E28-E30 -> 0 | F32: =F28-F30 -> 0 | G32: =G28-G30 -> 0 | H32: =H28-H30 -> 0 | I32: =I28-I30 -> 0 | J32: =J28-J30 -> 0 | K32: =K28-K30 -> 0 | L32: =L28-L30 -> 0 | M32: =M28-M30 -> 0 | N32: =N28-N30 -> 0 | O32: =O28-O30 -> 0 | P32: =P28-P30 -> 0 | Q32: =Q28-Q30 -> 0 | R32: =R28-R30 -> 0 | S32: =S28-S30 -> 0 | T32: =T28-T30 -> 0 | U32: =U28-U30 -> 0 | V32: =V28-V30 -> 0 | W32: =W28-W30 -> 0 | X32: =X28-X30 -> 0 | Y32: =Y28-Y30 -> 0 | Z32: =Z28-Z30 -> 0 | AA32: =AA28-AA30 -> 0 | AB32: =AB28-AB30 -> 0 | AC32: =AC28-AC30 -> 0 | AD32: =AD28-AD30 -> 0 | AE32: =AE28-AE30 -> 0 | AF32: =AF28-AF30 -> 0 | AG32: =AG28-AG30 -> 0 | AH32: =AH28-AH30 -> 0 | AI32: =AI28-AI30 -> 0 | AJ32: =AJ28-AJ30 -> 0 | AK32: =AK28-AK30 -> 0 | AL32: =AL28-AL30 -> 0 | AM32: =AM28-AM30 -> 0 | AN32: =AN28-AN30 -> 0

Sheet Prevention
A1: Prevention Cost | E1: These are cost related to all activities to prevent defects from occurring and to keep appraisal and failure to a minimum.
A6: Total | B6: Budget | C6: =SUM(E6:AO6) -> 15,750 | E6: =SUM(E10+E13+E16+E19+E22+E25+E28) -> 100 | F6: =SUM(F10+F13+F16+F19+F22+F25+F28) -> 100 | G6: 250 | H6: 500 | I6: 700 | J6: 700 | K6: 700 | L6: 700 | M6: 700 | N6: 700 | O6: 500 | P6: 500 | Q6: 500 | R6: 500 | S6: 500 | T6: 500 | U6: 500 | V6: 500 | W6: 500 | X6: 500 | Y6: 500 | Z6: 500 | AA6: 500 | AB6: 500 | AC6: 500 | AD6: 500 | AE6: 500 | AF6: 500 | AG6: 500 | AH6: 500 | AI6: 500 | AJ6: 100 | AK6: 0 | AL6: 0 | AM6: 0 | AN6: 0 | AO6: 0
B7: Actual | C7: =SUM(E7:AO7) -> 1,484 | E7: =SUM(E11+E14+E17+E20+E23+E26+E29) -> 90 | F7: 89 | G7: 210 | H7: 455 | I7: 640 | J7: 0 | K7: 0 | L7: 0 | M7: 0 | N7: 0 | O7: 0 | P7: 0 | Q7: 0 | R7: 0 | S7: 0 | T7: 0 | U7: 0 | V7: 0 | W7: 0 | X7: 0 | Y7: 0 | Z7: 0 | AA7: 0 | AB7: 0 | AC7: 0 | AD7: 0 | AE7: 0 | AF7: 0 | AG7: 0 | AH7: 0 | AI7: 0 | AJ7: 0 | AK7: 0 | AL7: 0 | AM7: 0 | AN7: 0 | AO7: 0
C8: =C6-C7 -> 14,266 | D8: =D6-D7 -> 0 | E8: =E6-E7 -> 10 | F8: =F6-F7 -> 11 | G8: 40 | H8: 45 | I8: 60 | J8: 700 | K8: 700 | L8: 700 | M8: 700 | N8: 700 | O8: 500 | P8: 500 | Q8: 500 | R8: 500 | S8: 500 | T8: 500 | U8: 500 | V8: 500 | W8: 500 | X8: 500 | Y8: 500 | Z8: 500 | AA8: 500 | AB8: 500 | AC8: 500 | AD8: 500 | AE8: 500 | AF8: 500 | AG8: 500 | AH8: 500 | AI8: 500 | AJ8: 100 | AK8: 0 | AL8: 0 | AM8: 0 | AN8: 0 | AO8: 0
D9: Duration | E9: =Summary!D8 -> 2014-07-01 | F9: =Summary!E8 -> 2014-08-01 | G9: =Summary!F8 -> 2014-09-01 | H9: =Summary!G8 -> 2014-10-01 | I9: =Summary!H8 -> 2014-11-01 | J9: =Summary!I8 -> 2014-12-01 | K9: =Summary!J8 -> 2015-01-01 | L9: =Summary!K8 -> 2015-02-01 | M9: =Summary!L8 -> 2015-03-01 | N9: =Summary!M8 -> 2015-04-01 | O9: =Summary!N8 -> 2015-05-01 | P9: =Summary!O8 -> 2015-06-01 | Q9: =Summary!P8 -> 2015-07-01 | R9: =Summary!Q8 -> 2015-08-01 | S9: =Summary!R8 -> 2015-09-01 | T9: =Summary!S8 -> 2015-10-01 | U9: =Summary!T8 -> 2015-11-01 | V9: =Summary!U8 -> 2015-12-01 | W9: =Summary!V8 -> 2016-01-01 | X9: =Summary!W8 -> 2016-02-01 | Y9: =Summary!X8 -> 2016-03-01 | Z9: =Summary!Y8 -> 2016-04-01 | AA9: =Summary!Z8 -> 2016-05-01 | AB9: =Summary!AA8 -> 2016-06-01 | AC9: =Summary!AB8 -> 2016-07-01 | AD9: =Summary!AC8 -> 2016-08-01 | AE9: =Summary!AD8 -> 2016-09-01 | AF9: =Summary!AE8 -> 2016-10-01 | AG9: =Summary!AF8 -> 2016-11-01 | AH9: =Summary!AG8 -> 2016-12-01 | AI9: =Summary!AH8 -> 2017-01-01 | AJ9: =Summary!AI8 -> 2017-02-01 | AK9: =Summary!AJ8 -> 2017-03-01 | AL9: =Summary!AK8 -> 2017-04-01 | AM9: =Summary!AL8 -> 2017-05-01 | AN9: =Summary!AM8 -> 2017-06-01 | AO9: =Summary!AN8 -> 2017-07-01
A10: Please remove example | B10: Budget | C10: =SUM(E10:AO10) -> 3,200 | D10: 32 | E10: 100 | F10: =E10 -> 100 | G10: =F10 -> 100 | H10: =G10 -> 100 | I10: 100 | J10: 100 | K10: 100 | L10: 100 | M10: 100 | N10: 100 | O10: 100 | P10: 100 | Q10: 100 | R10: 100 | S10: 100 | T10: 100 | U10: 100 | V10: 100 | W10: 100 | X10: 100 | Y10: 100 | Z10: 100 | AA10: 100 | AB10: 100 | AC10: 100 | AD10: 100 | AE10: 100 | AF10: 100 | AG10: 100 | AH10: 100 | AI10: 100 | AJ10: 100 | AK10: 0 | AL10: 0 | AM10: =AL10 -> 0 | AN10: =AM10 -> 0 | AO10: =AN10 -> 0
A11: entries | B11: Actual | C11: =SUM(E11:AO11) -> 474 | D11: =COUNT(E11:AI11) -> 5 | E11: 90 | F11: 89 | G11: 110 | H11: 95 | I11: 90
C12: =C10-C11 -> 2,726 | D12: =D10-D11 -> 27 | E12: =E10-E11 -> 10 | F12: =F10-F11 -> 11 | G12: -10 | H12: 5 | I12: 10 | J12: 100 | K12: 100 | L12: 100 | M12: 100 | N12: 100 | O12: 100 | P12: 100 | Q12: 100 | R12: 100 | S12: 100 | T12: 100 | U12: 100 | V12: 100 | W12: 100 | X12: 100 | Y12: 100 | Z12: 100 | AA12: 100 | AB12: 100 | AC12: 100 | AD12: 100 | AE12: 100 | AF12: 100 | AG12: 100 | AH12: 100 | AI12: 100 | AJ12: 100 | AK12: 0 | AL12: 0 | AM12: 0 | AN12: 0 | AO12: 0
A13: Please remove example | B13: Budget | C13: =SUM(E13:AO13) -> 11,150 | D13: 29 | E13: 0 | F13: =E13 -> 0 | G13: 150 | H13: 200 | I13: 400 | J13: =I13 -> 400 | K13: =J13 -> 400 | L13: 400 | M13: 400 | N13: 400 | O13: 400 | P13: 400 | Q13: 400 | R13: 400 | S13: 400 | T13: 400 | U13: 400 | V13: 400 | W13: 400 | X13: 400 | Y13: 400 | Z13: 400 | AA13: 400 | AB13: 400 | AC13: 400 | AD13: 400 | AE13: 400 | AF13: 400 | AG13: 400 | AH13: 400 | AI13: 400 | AJ13: 0 | AK13: 0 | AL13: 0 | AM13: 0 | AN13: 0 | AO13: 0
A14: entries | B14: Actual | C14: =SUM(E14:AO14) -> 610 | D14: =COUNT(E14:AI14) -> 3 | G14: 100 | H14: 160 | I14: 350
C15: =C13-C14 -> 10,540 | D15: =D13-D14 -> 26 | E15: =E13-E14 -> 0 | F15: =F13-F14 -> 0 | G15: 50 | H15: 40 | I15: 50 | J15: 400 | K15: 400 | L15: 400 | M15: 400 | N15: 400 | O15: 400 | P15: 400 | Q15: 400 | R15: 400 | S15: 400 | T15: 400 | U15: 400 | V15: 400 | W15: 400 | X15: 400 | Y15: 400 | Z15: 400 | AA15: 400 | AB15: 400 | AC15: 400 | AD15: 400 | AE15: 400 | AF15: 400 | AG15: 400 | AH15: 400 | AI15: 400 | AJ15: 0 | AK15: 0 | AL15: 0 | AM15: 0 | AN15: 0 | AO15: 0
A16: Please remove example | B16: Budget | C16: =SUM(E16:AO16) -> 1,400 | D16: 7 | E16: 0 | F16: =E16 -> 0 | G16: =F16 -> 0 | H16: 200 | I16: 200 | J16: 200 | K16: 200 | L16: 200 | M16: 200 | N16: 200 | O16: 0 | P16: 0 | Q16: 0 | R16: 0 | S16: 0 | T16: 0 | U16: 0 | V16: 0 | W16: 0 | X16: 0 | Y16: 0 | Z16: 0 | AA16: 0 | AB16: 0 | AC16: 0 | AD16: 0 | AE16: 0 | AF16: 0 | AG16: 0 | AH16: 0 | AI16: 0 | AJ16: =AI16 -> 0 | AK16: =AJ16 -> 0 | AL16: =AK16 -> 0 | AM16: =AL16 -> 0 | AN16: =AM16 -> 0 | AO16: =AN16 -> 0
A17: entries | B17: Actual | C17: =SUM(E17:AO17) -> 400 | D17: =COUNT(E17:AI17) -> 2 | H17: 200 | I17: 200
C18: =C16-C17 -> 1,000 | D18: =D16-D17 -> 5 | E18: =E16-E17 -> 0 | F18: =F16-F17 -> 0 | G18: 0 | H18: 0 | I18: 0 | J18: 200 | K18: 200 | L18: 200 | M18: 200 | N18: 200 | O18: 0 | P18: 0 | Q18: 0 | R18: 0 | S18: 0 | T18: 0 | U18: 0 | V18: 0 | W18: 0 | X18: 0 | Y18: 0 | Z18: 0 | AA18: 0 | AB18: 0 | AC18: 0 | AD18: 0 | AE18: 0 | AF18: 0 | AG18: 0 | AH18: 0 | AI18: 0 | AJ18: 0 | AK18: 0 | AL18: 0 | AM18: 0 | AN18: 0 | AO18: 0
B19: Budget | C19: =SUM(E19:AO19) -> 0 | E19: 0 | F19: =E19 -> 0 | G19: =F19 -> 0 | H19: 0 | I19: 0 | J19: =I19 -> 0 | K19: 0 | L19: 0 | M19: 0 | N19: 0 | O19: 0 | P19: 0 | Q19: 0 | R19: 0 | S19: 0 | T19: 0 | U19: 0 | V19: 0 | W19: 0 | X19: 0 | Y19: 0 | Z19: 0 | AA19: 0 | AB19: 0 | AC19: 0 | AD19: 0 | AE19: 0 | AF19: 0 | AG19: 0 | AH19: 0 | AI19: 0 | AJ19: 0 | AK19: 0 | AL19: =AK19 -> 0 | AM19: =AL19 -> 0 | AN19: =AM19 -> 0 | AO19: =AN19 -> 0
B20: Actual | C20: =SUM(E20:AO20) -> 0 | D20: 0
C21: =C19-C20 -> 0 | D21: =D19-D20 -> 0 | E21: =E19-E20 -> 0 | F21: =F19-F20 -> 0 | G21: 0 | H21: 0 | I21: 0 | J21: 0 | K21: 0 | L21: 0 | M21: 0 | N21: 0 | O21: 0 | P21: 0 | Q21: 0 | R21: 0 | S21: 0 | T21: 0 | U21: 0 | V21: 0 | W21: 0 | X21: 0 | Y21: 0 | Z21: 0 | AA21: 0 | AB21: 0 | AC21: 0 | AD21: 0 | AE21: 0 | AF21: 0 | AG21: 0 | AH21: 0 | AI21: 0 | AJ21: 0 | AK21: 0 | AL21: 0 | AM21: 0 | AN21: 0 | AO21: 0
B22: Budget | C22: =SUM(E22:AO22) -> 0 | E22: 0 | F22: =E22 -> 0 | G22: =F22 -> 0 | H22: =G22 -> 0 | I22: =H22 -> 0 | J22: =I22 -> 0 | K22: =J22 -> 0 | L22: =K22 -> 0 | M22: =L22 -> 0 | N22: 0 | O22: 0 | P22: 0 | Q22: 0 | R22: 0 | S22: 0 | T22: 0 | U22: 0 | V22: 0 | W22: 0 | X22: 0 | Y22: 0 | Z22: 0 | AA22: 0 | AB22: 0 | AC22: 0 | AD22: 0 | AE22: 0 | AF22: 0 | AG22: 0 | AH22: 0 | AI22: 0 | AJ22: =AI22 -> 0 | AK22: =AJ22 -> 0 | AL22: =AK22 -> 0 | AM22: =AL22 -> 0 | AN22: =AM22 -> 0 | AO22: =AN22 -> 0
B23: Actual | C23: =SUM(E23:AO23) -> 0 | D23: 0
C24: =C22-C23 -> 0 | D24: =D22-D23 -> 0 | E24: =E22-E23 -> 0 | F24: =F22-F23 -> 0 | G24: 0 | H24: 0 | I24: 0 | J24: 0 | K24: 0 | L24: 0 | M24: 0 | N24: 0 | O24: 0 | P24: 0 | Q24: 0 | R24: 0 | S24: 0 | T24: 0 | U24: 0 | V24: 0 | W24: 0 | X24: 0 | Y24: 0 | Z24: 0 | AA24: 0 | AB24: 0 | AC24: 0 | AD24: 0 | AE24: 0 | AF24: 0 | AG24: 0 | AH24: 0 | AI24: 0 | AJ24: 0 | AK24: 0 | AL24: 0 | AM24: 0 | AN24: 0 | AO24: 0
B25: Budget | C25: =SUM(E25:AO25) -> 0 | E25: 0 | F25: =E25 -> 0 | G25: =F25 -> 0 | H25: =G25 -> 0 | I25: =H25 -> 0 | J25: =I25 -> 0 | K25: =J25 -> 0 | L25: =K25 -> 0 | M25: 0 | N25: 0 | O25: 0 | P25: 0 | Q25: 0 | R25: 0 | S25: 0 | T25: 0 | U25: 0 | V25: 0 | W25: 0 | X25: 0 | Y25: 0 | Z25: 0 | AA25: 0 | AB25: 0 | AC25: 0 | AD25: 0 | AE25: 0 | AF25: 0 | AG25: 0 | AH25: 0 | AI25: 0 | AJ25: 0 | AK25: 0 | AL25: 0 | AM25: 0 | AN25: =AM25 -> 0 | AO25: =AN25 -> 0
B26: Actual | C26: =SUM(E26:AO26) -> 0 | D26: =COUNT(E26:AI26) -> 0
C27: =C25-C26 -> 0 | D27: =D25-D26 -> 0 | E27: =E25-E26 -> 0 | F27: =F25-F26 -> 0 | G27: 0 | H27: 0 | I27: 0 | J27: 0 | K27: 0 | L27: 0 | M27: 0 | N27: 0 | O27: 0 | P27: 0 | Q27: 0 | R27: 0 | S27: 0 | T27: 0 | U27: 0 | V27: 0 | W27: 0 | X27: 0 | Y27: 0 | Z27: 0 | AA27: 0 | AB27: 0 | AC27: 0 | AD27: 0 | AE27: 0 | AF27: 0 | AG27: 0 | AH27: 0 | AI27: 0 | AJ27: 0 | AK27: 0 | AL27: 0 | AM27: 0 | AN27: 0 | AO27: 0
B28: Budget | C28: =SUM(E28:AO28) -> 0 | E28: 0 | F28: =E28 -> 0 | G28: =F28 -> 0 | H28: =G28 -> 0 | I28: =H28 -> 0 | J28: =I28 -> 0 | K28: =J28 -> 0 | L28: =K28 -> 0 | M28: 0 | N28: 0 | O28: 0 | P28: 0 | Q28: 0 | R28: 0 | S28: 0 | T28: 0 | U28: 0 | V28: 0 | W28: 0 | X28: 0 | Y28: 0 | Z28: 0 | AA28: 0 | AB28: 0 | AC28: 0 | AD28: 0 | AE28: 0 | AF28: 0 | AG28: 0 | AH28: 0 | AI28: 0 | AJ28: 0 | AK28: 0 | AL28: 0 | AM28: 0 | AN28: 0 | AO28: =AN28 -> 0
B29: Actual | C29: =SUM(E29:AO29) -> 0 | D29: =COUNT(E29:AI29) -> 0
C30: =C28-C29 -> 0 | D30: =D28-D29 -> 0 | E30: =E28-E29 -> 0 | F30: =F28-F29 -> 0 | G30: 0 | H30: 0 | I30: 0 | J30: 0 | K30: 0 | L30: 0 | M30: 0 | N30: 0 | O30: 0 | P30: 0 | Q30: 0 | R30: 0 | S30: 0 | T30: 0 | U30: 0 | V30: 0 | W30: 0 | X30: 0 | Y30: 0 | Z30: 0 | AA30: 0 | AB30: 0 | AC30: 0 | AD30: 0 | AE30: 0 | AF30: 0 | AG30: 0 | AH30: 0 | AI30: 0 | AJ30: 0 | AK30: 0 | AL30: 0 | AM30: 0 | AN30: 0 | AO30: 0

Sheet Appraisal
A1: Appraisal Cost | E1: These are costs incurred while monitoring and controlling. They include execution inspections, result control, field monitoring, supplier surveillance, material receipt inspection, and other planned activities to assure compliance with a certain requirement.
A6: Total | B6: Budget | C6: =SUM(E6:AO6) -> 92,000 | D6: 31 | E6: =SUM(E10+E13+E16+E19+E22+E25+E28+E31+E34) -> 1,000 | F6: =SUM(F10+F13+F16+F19+F22+F25+F28+F31+F34) -> 3,000 | G6: =SUM(G10+G13+G16+G19+G22+G25+G28+G31+G34) -> 3,000 | H6: 3,000 | I6: 3,000 | J6: 3,000 | K6: 3,000 | L6: 3,000 | M6: 3,000 | N6: 3,000 | O6: 3,000 | P6: 3,000 | Q6: 3,000 | R6: 3,000 | S6: 3,000 | T6: 3,000 | U6: 3,000 | V6: 3,000 | W6: 3,000 | X6: 3,000 | Y6: 3,000 | Z6: 3,000 | AA6: 3,000 | AB6: 3,000 | AC6: 3,000 | AD6: 3,000 | AE6: 3,000 | AF6: 3,000 | AG6: 3,000 | AH6: 3,000 | AI6: 3,000 | AJ6: 1,000 | AK6: 0 | AL6: 0 | AM6: 0 | AN6: 0 | AO6: =SUM(AO10+AO13+AO16+AO19+AO22+AO25+AO28+AO31+AO34) -> 0
B7: Actual | C7: =SUM(E7:AO7) -> 11,730 | D7: =COUNT(E7:AI7) -> 31 | E7: =SUM(E11+E14+E17+E20+E23) -> 900 | F7: =SUM(F11+F14+F17+F20+F23) -> 2,790 | G7: 3,100 | H7: 2,950 | I7: 1,990 | J7: 0 | K7: 0 | L7: 0 | M7: 0 | N7: =SUM(N11+N14+N17+N20+N23+N26+N29+N32+N35) -> 0 | O7: =SUM(O11+O14+O17+O20+O23+O26+O29+O32+O35) -> 0 | P7: =SUM(P11+P14+P17+P20+P23+P26+P29+P32+P35) -> 0 | Q7: 0 | R7: 0 | S7: 0 | T7: 0 | U7: 0 | V7: 0 | W7: 0 | X7: 0 | Y7: 0 | Z7: 0 | AA7: 0 | AB7: 0 | AC7: 0 | AD7: 0 | AE7: 0 | AF7: 0 | AG7: 0 | AH7: 0 | AI7: 0 | AJ7: 0 | AK7: 0 | AL7: 0 | AM7: 0 | AN7: 0 | AO7: =SUM(AO11+AO14+AO17+AO20+AO23+AO26+AO29+AO32+AO35) -> 0
C8: =C6-C7 -> 80,270 | D8: =D6-D7 -> 0 | E8: =E6-E7 -> 100 | F8: =F6-F7 -> 210 | G8: =G6-G7 -> -100 | H8: =H6-H7 -> 50 | I8: =I6-I7 -> 1,010 | J8: =J6-J7 -> 3,000 | K8: =K6-K7 -> 3,000 | L8: =L6-L7 -> 3,000 | M8: =M6-M7 -> 3,000 | N8: =N6-N7 -> 3,000 | O8: =O6-O7 -> 3,000 | P8: =P6-P7 -> 3,000 | Q8: =Q6-Q7 -> 3,000 | R8: =R6-R7 -> 3,000 | S8: =S6-S7 -> 3,000 | T8: =T6-T7 -> 3,000 | U8: =U6-U7 -> 3,000 | V8: =V6-V7 -> 3,000 | W8: =W6-W7 -> 3,000 | X8: =X6-X7 -> 3,000 | Y8: =Y6-Y7 -> 3,000 | Z8: =Z6-Z7 -> 3,000 | AA8: =AA6-AA7 -> 3,000 | AB8: =AB6-AB7 -> 3,000 | AC8: =AC6-AC7 -> 3,000 | AD8: =AD6-AD7 -> 3,000 | AE8: =AE6-AE7 -> 3,000 | AF8: =AF6-AF7 -> 3,000 | AG8: =AG6-AG7 -> 3,000 | AH8: =AH6-AH7 -> 3,000 | AI8: =AI6-AI7 -> 3,000 | AJ8: =AJ6-AJ7 -> 1,000 | AK8: =AK6-AK7 -> 0 | AL8: =AL6-AL7 -> 0 | AM8: =AM6-AM7 -> 0 | AN8: =AN6-AN7 -> 0 | AO8: =AO6-AO7 -> 0
D9: Duration | E9: =Summary!D8 -> 2014-07-01 | F9: =Summary!E8 -> 2014-08-01 | G9: =Summary!F8 -> 2014-09-01 | H9: =Summary!G8 -> 2014-10-01 | I9: =Summary!H8 -> 2014-11-01 | J9: =Summary!I8 -> 2014-12-01 | K9: =Summary!J8 -> 2015-01-01 | L9: =Summary!K8 -> 2015-02-01 | M9: =Summary!L8 -> 2015-03-01 | N9: =Summary!M8 -> 2015-04-01 | O9: =Summary!N8 -> 2015-05-01 | P9: =Summary!O8 -> 2015-06-01 | Q9: =Summary!P8 -> 2015-07-01 | R9: =Summary!Q8 -> 2015-08-01 | S9: =Summary!R8 -> 2015-09-01 | T9: =Summary!S8 -> 2015-10-01 | U9: =Summary!T8 -> 2015-11-01 | V9: =Summary!U8 -> 2015-12-01 | W9: =Summary!V8 -> 2016-01-01 | X9: =Summary!W8 -> 2016-02-01 | Y9: =Summary!X8 -> 2016-03-01 | Z9: =Summary!Y8 -> 2016-04-01 | AA9: =Summary!Z8 -> 2016-05-01 | AB9: =Summary!AA8 -> 2016-06-01 | AC9: =Summary!AB8 -> 2016-07-01 | AD9: =Summary!AC8 -> 2016-08-01 | AE9: =Summary!AD8 -> 2016-09-01 | AF9: =Summary!AE8 -> 2016-10-01 | AG9: =Summary!AF8 -> 2016-11-01 | AH9: =Summary!AG8 -> 2016-12-01 | AI9: =Summary!AH8 -> 2017-01-01 | AJ9: =Summary!AI8 -> 2017-02-01 | AK9: =Summary!AJ8 -> 2017-03-01 | AL9: =Summary!AK8 -> 2017-04-01 | AM9: =Summary!AL8 -> 2017-05-01 | AN9: =Summary!AM8 -> 2017-06-01 | AO9: =Summary!AN8 -> 2017-07-01
A10: Please remove example | B10: Budget | C10: =SUM(E10:AO10) -> 32,000 | D10: 32 | E10: 1,000 | F10: =E10 -> 1,000 | G10: 1,000 | H10: 1,000 | I10: 1,000 | J10: 1,000 | K10: 1,000 | L10: 1,000 | M10: 1,000 | N10: 1,000 | O10: 1,000 | P10: 1,000 | Q10: 1,000 | R10: 1,000 | S10: 1,000 | T10: 1,000 | U10: 1,000 | V10: 1,000 | W10: 1,000 | X10: 1,000 | Y10: 1,000 | Z10: 1,000 | AA10: 1,000 | AB10: 1,000 | AC10: 1,000 | AD10: 1,000 | AE10: 1,000 | AF10: 1,000 | AG10: 1,000 | AH10: 1,000 | AI10: 1,000 | AJ10: 1,000 | AK10: 0 | AL10: 0 | AM10: =AL10 -> 0 | AN10: =AM10 -> 0 | AO10: =AN10 -> 0
A11: entries | B11: Actual | C11: =SUM(E11:AO11) -> 3,930 | D11: =COUNT(E11:AI11) -> 31 | E11: 900 | F11: 890 | G11: 1,100 | H11: 950 | I11: 90 | J11: 0 | K11: 0 | L11: 0 | M11: 0 | N11: 0 | O11: 0 | P11: 0 | Q11: 0 | R11: 0 | S11: 0 | T11: 0 | U11: 0 | V11: 0 | W11: 0 | X11: 0 | Y11: 0 | Z11: 0 | AA11: 0 | AB11: 0 | AC11: 0 | AD11: 0 | AE11: 0 | AF11: 0 | AG11: 0 | AH11: 0 | AI11: 0 | AJ11: 0 | AK11: 0 | AL11: 0 | AM11: 0 | AN11: 0 | AO11: 0
C12: =C10-C11 -> 28,070 | D12: =D10-D11 -> 1 | E12: =E10-E11 -> 100 | F12: =F10-F11 -> 110 | G12: -100 | H12: 50 | I12: 910 | J12: 1,000 | K12: 1,000 | L12: 1,000 | M12: 1,000 | N12: 1,000 | O12: 1,000 | P12: 1,000 | Q12: 1,000 | R12: 1,000 | S12: 1,000 | T12: 1,000 | U12: 1,000 | V12: 1,000 | W12: 1,000 | X12: 1,000 | Y12: 1,000 | Z12: 1,000 | AA12: 1,000 | AB12: 1,000 | AC12: 1,000 | AD12: 1,000 | AE12: 1,000 | AF12: 1,000 | AG12: 1,000 | AH12: 1,000 | AI12: 1,000 | AJ12: 1,000 | AK12: 0 | AL12: 0 | AM12: 0 | AN12: 0 | AO12: 0
A13: Please remove example | B13: Budget | C13: =SUM(E13:AO13) -> 60,000 | D13: 30 | E13: 0 | F13: 2,000 | G13: =F13 -> 2,000 | H13: 2,000 | I13: 2,000 | J13: 2,000 | K13: 2,000 | L13: 2,000 | M13: 2,000 | N13: 2,000 | O13: 2,000 | P13: 2,000 | Q13: 2,000 | R13: 2,000 | S13: 2,000 | T13: 2,000 | U13: 2,000 | V13: 2,000 | W13: 2,000 | X13: 2,000 | Y13: 2,000 | Z13: 2,000 | AA13: 2,000 | AB13: 2,000 | AC13: 2,000 | AD13: 2,000 | AE13: 2,000 | AF13: 2,000 | AG13: 2,000 | AH13: 2,000 | AI13: 2,000 | AJ13: 0 | AK13: 0 | AL13: 0 | AM13: 0 | AN13: 0 | AO13: 0
A14: entries | B14: Actual | C14: =SUM(E14:AO14) -> 7,800 | D14: =COUNT(E14:AI14) -> 4 | F14: 1,900 | G14: 2,000 | H14: 2,000 | I14: 1,900
C15: =C13-C14 -> 52,200 | D15: =D13-D14 -> 26 | E15: =E13-E14 -> 0 | F15: =F13-F14 -> 100 | G15: 0 | H15: 0 | I15: 100 | J15: 2,000 | K15: 2,000 | L15: 2,000 | M15: 2,000 | N15: 2,000 | O15: 2,000 | P15: 2,000 | Q15: 2,000 | R15: 2,000 | S15: 2,000 | T15: 2,000 | U15: 2,000 | V15: 2,000 | W15: 2,000 | X15: 2,000 | Y15: 2,000 | Z15: 2,000 | AA15: 2,000 | AB15: 2,000 | AC15: 2,000 | AD15: 2,000 | AE15: 2,000 | AF15: 2,000 | AG15: 2,000 | AH15: 2,000 | AI15: 2,000 | AJ15: 0 | AK15: 0 | AL15: 0 | AM15: 0 | AN15: 0 | AO15: 0
B16: Budget | C16: =SUM(E16:AO16) -> 0 | E16: 0 | F16: =E16 -> 0 | G16: =F16 -> 0 | H16: 0 | I16: 0 | J16: 0 | K16: =J16 -> 0 | L16: 0 | M16: 0 | N16: 0 | O16: 0 | P16: 0 | Q16: 0 | R16: 0 | S16: 0 | T16: 0 | U16: 0 | V16: 0 | W16: 0 | X16: 0 | Y16: 0 | Z16: 0 | AA16: 0 | AB16: 0 | AC16: 0 | AD16: 0 | AE16: 0 | AF16: 0 | AG16: 0 | AH16: 0 | AI16: 0 | AJ16: 0 | AK16: =AJ16 -> 0 | AL16: =AK16 -> 0 | AM16: 0 | AN16: 0 | AO16: =AN16 -> 0
B17: Actual | C17: =SUM(E17:AO17) -> 0 | D17: =COUNT(E17:AI17) -> 0
C18: =C16-C17 -> 0 | D18: =D16-D17 -> 0 | E18: =E16-E17 -> 0 | F18: =F16-F17 -> 0 | G18: =G16-G17 -> 0 | H18: =H16-H17 -> 0 | I18: =I16-I17 -> 0 | J18: =J16-J17 -> 0 | K18: =K16-K17 -> 0 | L18: =L16-L17 -> 0 | M18: =M16-M17 -> 0 | N18: =N16-N17 -> 0 | O18: =O16-O17 -> 0 | P18: =P16-P17 -> 0 | Q18: =Q16-Q17 -> 0 | R18: =R16-R17 -> 0 | S18: =S16-S17 -> 0 | T18: =T16-T17 -> 0 | U18: =U16-U17 -> 0 | V18: =V16-V17 -> 0 | W18: =W16-W17 -> 0 | X18: =X16-X17 -> 0 | Y18: =Y16-Y17 -> 0 | Z18: =Z16-Z17 -> 0 | AA18: =AA16-AA17 -> 0 | AB18: =AB16-AB17 -> 0 | AC18: =AC16-AC17 -> 0 | AD18: =AD16-AD17 -> 0 | AE18: =AE16-AE17 -> 0 | AF18: =AF16-AF17 -> 0 | AG18: =AG16-AG17 -> 0 | AH18: =AH16-AH17 -> 0 | AI18: =AI16-AI17 -> 0 | AJ18: =AJ16-AJ17 -> 0 | AK18: =AK16-AK17 -> 0 | AL18: =AL16-AL17 -> 0 | AM18: =AM16-AM17 -> 0 | AN18: =AN16-AN17 -> 0 | AO18: =AO16-AO17 -> 0
B19: Budget | C19: =SUM(E19:AO19) -> 0 | E19: 0 | F19: =E19 -> 0 | G19: =F19 -> 0 | H19: 0 | I19: 0 | J19: 0 | K19: =J19 -> 0 | L19: =K19 -> 0 | M19: =L19 -> 0 | N19: 0 | O19: 0 | P19: 0 | Q19: 0 | R19: 0 | S19: 0 | T19: 0 | U19: 0 | V19: 0 | W19: 0 | X19: 0 | Y19: 0 | Z19: 0 | AA19: 0 | AB19: 0 | AC19: 0 | AD19: 0 | AE19: 0 | AF19: 0 | AG19: 0 | AH19: 0 | AI19: 0 | AJ19: 0 | AK19: 0 | AL19: 0 | AM19: 0 | AN19: 0 | AO19: =AN19 -> 0
B20: Actual | C20: =SUM(E20:AO20) -> 0 | D20: =COUNT(E20:AI20) -> 0
C21: =C19-C20 -> 0 | D21: =D19-D20 -> 0 | E21: =E19-E20 -> 0 | F21: =F19-F20 -> 0 | G21: =G19-G20 -> 0 | H21: =H19-H20 -> 0 | I21: =I19-I20 -> 0 | J21: =J19-J20 -> 0 | K21: =K19-K20 -> 0 | L21: =L19-L20 -> 0 | M21: =M19-M20 -> 0 | N21: =N19-N20 -> 0 | O21: =O19-O20 -> 0 | P21: =P19-P20 -> 0 | Q21: =Q19-Q20 -> 0 | R21: =R19-R20 -> 0 | S21: =S19-S20 -> 0 | T21: =T19-T20 -> 0 | U21: =U19-U20 -> 0 | V21: =V19-V20 -> 0 | W21: =W19-W20 -> 0 | X21: =X19-X20 -> 0 | Y21: =Y19-Y20 -> 0 | Z21: =Z19-Z20 -> 0 | AA21: =AA19-AA20 -> 0 | AB21: =AB19-AB20 -> 0 | AC21: =AC19-AC20 -> 0 | AD21: =AD19-AD20 -> 0 | AE21: =AE19-AE20 -> 0 | AF21: =AF19-AF20 -> 0 | AG21: =AG19-AG20 -> 0 | AH21: =AH19-AH20 -> 0 | AI21: =AI19-AI20 -> 0 | AJ21: =AJ19-AJ20 -> 0 | AK21: =AK19-AK20 -> 0 | AL21: =AL19-AL20 -> 0 | AM21: =AM19-AM20 -> 0 | AN21: =AN19-AN20 -> 0 | AO21: =AO19-AO20 -> 0
B22: Budget | C22: =SUM(E22:AO22) -> 0 | E22: 0 | F22: =E22 -> 0 | G22: =F22 -> 0 | H22: 0 | I22: 0 | J22: 0 | K22: =J22 -> 0 | L22: 0 | M22: 0 | N22: 0 | O22: 0 | P22: 0 | Q22: 0 | R22: 0 | S22: 0 | T22: 0 | U22: 0 | V22: 0 | W22: 0 | X22: 0 | Y22: 0 | Z22: 0 | AA22: 0 | AB22: 0 | AC22: 0 | AD22: 0 | AE22: 0 | AF22: 0 | AG22: 0 | AH22: 0 | AI22: 0 | AJ22: 0 | AK22: 0 | AL22: 0 | AM22: 0 | AN22: 0 | AO22: =AN22 -> 0
B23: Actual | C23: =SUM(E23:AO23) -> 0 | D23: =COUNT(E23:AI23) -> 0
C24: =C22-C23 -> 0 | D24: =D22-D23 -> 0 | E24: =E22-E23 -> 0 | F24: =F22-F23 -> 0 | G24: =G22-G23 -> 0 | H24: =H22-H23 -> 0 | I24: =I22-I23 -> 0 | J24: =J22-J23 -> 0 | K24: =K22-K23 -> 0 | L24: =L22-L23 -> 0 | M24: =M22-M23 -> 0 | N24: =N22-N23 -> 0 | O24: =O22-O23 -> 0 | P24: =P22-P23 -> 0 | Q24: =Q22-Q23 -> 0 | R24: =R22-R23 -> 0 | S24: =S22-S23 -> 0 | T24: =T22-T23 -> 0 | U24: =U22-U23 -> 0 | V24: =V22-V23 -> 0 | W24: =W22-W23 -> 0 | X24: =X22-X23 -> 0 | Y24: =Y22-Y23 -> 0 | Z24: =Z22-Z23 -> 0 | AA24: =AA22-AA23 -> 0 | AB24: =AB22-AB23 -> 0 | AC24: =AC22-AC23 -> 0 | AD24: =AD22-AD23 -> 0 | AE24: =AE22-AE23 -> 0 | AF24: =AF22-AF23 -> 0 | AG24: =AG22-AG23 -> 0 | AH24: =AH22-AH23 -> 0 | AI24: =AI22-AI23 -> 0 | AJ24: =AJ22-AJ23 -> 0 | AK24: =AK22-AK23 -> 0 | AL24: =AL22-AL23 -> 0 | AM24: =AM22-AM23 -> 0 | AN24: =AN22-AN23 -> 0 | AO24: =AO22-AO23 -> 0
B25: Budget | C25: =SUM(E25:AO25) -> 0 | E25: 0 | F25: 0 | G25: =F25 -> 0 | H25: 0 | I25: 0 | J25: 0 | K25: 0 | L25: =K25 -> 0 | M25: 0 | N25: 0 | O25: 0 | P25: 0 | Q25: 0 | R25: 0 | S25: 0 | T25: 0 | U25: 0 | V25: 0 | W25: 0 | X25: 0 | Y25: 0 | Z25: 0 | AA25: 0 | AB25: 0 | AC25: 0 | AD25: 0 | AE25: 0 | AF25: 0 | AG25: 0 | AH25: 0 | AI25: 0 | AJ25: 0 | AK25: 0 | AL25: 0 | AM25: 0 | AN25: 0 | AO25: =AN25 -> 0
B26: Actual | C26: =SUM(E26:AO26) -> 0 | D26: =COUNT(E26:AI26) -> 6 | E26: 0 | F26: 0 | G26: 0 | H26: 0 | I26: 0 | K26: 0
C27: =C25-C26 -> 0 | D27: =D25-D26 -> -6 | E27: =E25-E26 -> 0 | F27: =F25-F26 -> 0 | G27: =G25-G26 -> 0 | H27: =H25-H26 -> 0 | I27: =I25-I26 -> 0 | J27: =J25-J26 -> 0 | K27: =K25-K26 -> 0 | L27: =L25-L26 -> 0 | M27: =M25-M26 -> 0 | N27: =N25-N26 -> 0 | O27: =O25-O26 -> 0 | P27: =P25-P26 -> 0 | Q27: =Q25-Q26 -> 0 | R27: =R25-R26 -> 0 | S27: =S25-S26 -> 0 | T27: =T25-T26 -> 0 | U27: =U25-U26 -> 0 | V27: =V25-V26 -> 0 | W27: =W25-W26 -> 0 | X27: =X25-X26 -> 0 | Y27: =Y25-Y26 -> 0 | Z27: =Z25-Z26 -> 0 | AA27: =AA25-AA26 -> 0 | AB27: =AB25-AB26 -> 0 | AC27: =AC25-AC26 -> 0 | AD27: =AD25-AD26 -> 0 | AE27: =AE25-AE26 -> 0 | AF27: =AF25-AF26 -> 0 | AG27: =AG25-AG26 -> 0 | AH27: =AH25-AH26 -> 0 | AI27: =AI25-AI26 -> 0 | AJ27: =AJ25-AJ26 -> 0 | AK27: =AK25-AK26 -> 0 | AL27: =AL25-AL26 -> 0 | AM27: =AM25-AM26 -> 0 | AN27: =AN25-AN26 -> 0 | AO27: =AO25-AO26 -> 0
B28: Budget | C28: =SUM(E28:AO28) -> 0 | E28: 0 | F28: =E28 -> 0 | G28: =F28 -> 0 | H28: 0 | I28: 0 | J28: 0 | K28: 0 | L28: =K28 -> 0 | M28: 0 | N28: 0 | O28: 0 | P28: 0 | Q28: 0 | R28: 0 | S28: 0 | T28: 0 | U28: 0 | V28: 0 | W28: 0 | X28: 0 | Y28: 0 | Z28: 0 | AA28: 0 | AB28: 0 | AC28: 0 | AD28: 0 | AE28: 0 | AF28: 0 | AG28: 0 | AH28: 0 | AI28: 0 | AJ28: 0 | AK28: 0 | AL28: 0 | AM28: 0 | AN28: 0 | AO28: =AN28 -> 0
B29: Actual | C29: =SUM(E29:AO29) -> 0 | D29: =COUNT(E29:AI29) -> 0
C30: =C28-C29 -> 0 | D30: =D28-D29 -> 0 | E30: =E28-E29 -> 0 | F30: =F28-F29 -> 0 | G30: =G28-G29 -> 0 | H30: =H28-H29 -> 0 | I30: =I28-I29 -> 0 | J30: =J28-J29 -> 0 | K30: =K28-K29 -> 0 | L30: =L28-L29 -> 0 | M30: =M28-M29 -> 0 | N30: =N28-N29 -> 0 | O30: =O28-O29 -> 0 | P30: =P28-P29 -> 0 | Q30: =Q28-Q29 -> 0 | R30: =R28-R29 -> 0 | S30: =S28-S29 -> 0 | T30: =T28-T29 -> 0 | U30: =U28-U29 -> 0 | V30: =V28-V29 -> 0 | W30: =W28-W29 -> 0 | X30: =X28-X29 -> 0 | Y30: =Y28-Y29 -> 0 | Z30: =Z28-Z29 -> 0 | AA30: =AA28-AA29 -> 0 | AB30: =AB28-AB29 -> 0 | AC30: =AC28-AC29 -> 0 | AD30: =AD28-AD29 -> 0 | AE30: =AE28-AE29 -> 0 | AF30: =AF28-AF29 -> 0 | AG30: =AG28-AG29 -> 0 | AH30: =AH28-AH29 -> 0 | AI30: =AI28-AI29 -> 0 | AJ30: =AJ28-AJ29 -> 0 | AK30: =AK28-AK29 -> 0 | AL30: =AL28-AL29 -> 0 | AM30: =AM28-AM29 -> 0 | AN30: =AN28-AN29 -> 0 | AO30: =AO28-AO29 -> 0
B31: Budget | C31: =SUM(E31:AO31) -> 0 | E31: 0 | F31: =E31 -> 0 | G31: =F31 -> 0 | H31: 0 | I31: 0 | J31: 0 | K31: 0 | L31: =K31 -> 0 | M31: 0 | N31: 0 | O31: 0 | P31: 0 | Q31: 0 | R31: 0 | S31: 0 | T31: 0 | U31: 0 | V31: 0 | W31: 0 | X31: 0 | Y31: 0 | Z31: 0 | AA31: 0 | AB31: 0 | AC31: 0 | AD31: 0 | AE31: 0 | AF31: 0 | AG31: 0 | AH31: 0 | AI31: 0 | AJ31: 0 | AK31: 0 | AL31: 0 | AM31: 0 | AN31: 0 | AO31: =AN31 -> 0
B32: Actual | C32: =SUM(E32:AO32) -> 0 | D32: =COUNT(E32:AI32) -> 0
C33: =C31-C32 -> 0 | D33: =D31-D32 -> 0 | E33: =E31-E32 -> 0 | F33: =F31-F32 -> 0 | G33: =G31-G32 -> 0 | H33: =H31-H32 -> 0 | I33: =I31-I32 -> 0 | J33: =J31-J32 -> 0 | K33: =K31-K32 -> 0 | L33: =L31-L32 -> 0 | M33: =M31-M32 -> 0 | N33: =N31-N32 -> 0 | O33: =O31-O32 -> 0 | P33: =P31-P32 -> 0 | Q33: =Q31-Q32 -> 0 | R33: =R31-R32 -> 0 | S33: =S31-S32 -> 0 | T33: =T31-T32 -> 0 | U33: =U31-U32 -> 0 | V33: =V31-V32 -> 0 | W33: =W31-W32 -> 0 | X33: =X31-X32 -> 0 | Y33: =Y31-Y32 -> 0 | Z33: =Z31-Z32 -> 0 | AA33: =AA31-AA32 -> 0 | AB33: =AB31-AB32 -> 0 | AC33: =AC31-AC32 -> 0 | AD33: =AD31-AD32 -> 0 | AE33: =AE31-AE32 -> 0 | AF33: =AF31-AF32 -> 0 | AG33: =AG31-AG32 -> 0 | AH33: =AH31-AH32 -> 0 | AI33: =AI31-AI32 -> 0 | AJ33: =AJ31-AJ32 -> 0 | AK33: =AK31-AK32 -> 0 | AL33: =AL31-AL32 -> 0 | AM33: =AM31-AM32 -> 0 | AN33: =AN31-AN32 -> 0 | AO33: =AO31-AO32 -> 0
B34: Budget | C34: =SUM(E34:AO34) -> 0 | E34: 0 | F34: =E34 -> 0 | G34: =F34 -> 0 | H34: 0 | I34: 0 | J34: 0 | K34: 0 | L34: =K34 -> 0 | M34: 0 | N34: 0 | O34: 0 | P34: 0 | Q34: 0 | R34: 0 | S34: 0 | T34: 0 | U34: 0 | V34: 0 | W34: 0 | X34: 0 | Y34: 0 | Z34: 0 | AA34: 0 | AB34: 0 | AC34: 0 | AD34: 0 | AE34: 0 | AF34: 0 | AG34: 0 | AH34: 0 | AI34: 0 | AJ34: 0 | AK34: 0 | AL34: 0 | AM34: 0 | AN34: =AM34 -> 0 | AO34: =AN34 -> 0
B35: Actual | C35: =SUM(E35:AO35) -> 0 | D35: =COUNT(E35:AI35) -> 0
C36: =C34-C35 -> 0 | D36: =D34-D35 -> 0 | E36: =E34-E35 -> 0 | F36: =F34-F35 -> 0 | G36: =G34-G35 -> 0 | H36: =H34-H35 -> 0 | I36: =I34-I35 -> 0 | J36: =J34-J35 -> 0 | K36: =K34-K35 -> 0 | L36: =L34-L35 -> 0 | M36: =M34-M35 -> 0 | N36: =N34-N35 -> 0 | O36: =O34-O35 -> 0 | P36: =P34-P35 -> 0 | Q36: =Q34-Q35 -> 0 | R36: =R34-R35 -> 0 | S36: =S34-S35 -> 0 | T36: =T34-T35 -> 0 | U36: =U34-U35 -> 0 | V36: =V34-V35 -> 0 | W36: =W34-W35 -> 0 | X36: =X34-X35 -> 0 | Y36: =Y34-Y35 -> 0 | Z36: =Z34-Z35 -> 0 | AA36: =AA34-AA35 -> 0 | AB36: =AB34-AB35 -> 0 | AC36: =AC34-AC35 -> 0 | AD36: =AD34-AD35 -> 0 | AE36: =AE34-AE35 -> 0 | AF36: =AF34-AF35 -> 0 | AG36: =AG34-AG35 -> 0 | AH36: =AH34-AH35 -> 0 | AI36: =AI34-AI35 -> 0 | AJ36: =AJ34-AJ35 -> 0 | AK36: =AK34-AK35 -> 0 | AL36: =AL34-AL35 -> 0 | AM36: =AM34-AM35 -> 0 | AN36: =AN34-AN35 -> 0 | AO36: =AO34-AO35 -> 0

Sheet Internal
A1: Internal Failure Cost | E1: These are costs that would disappear if no defects existed prior to selivery to the client. These costs include rework, scrap, re-check or re-inspection, corrective action, re-design, vendor defects, and other like defects.
A6: Total | B6: Budget | C6: =SUM(E6:AO6) -> 40,750 | E6: =SUM(E10+E13+E16+E19+E22) -> 1,000 | F6: =SUM(F10+F13+F16+F19+F22) -> 1,000 | G6: 1,500 | H6: 1,500 | I6: 1,500 | J6: 1,500 | K6: 1,500 | L6: 1,250 | M6: 1,250 | N6: 1,250 | O6: 1,250 | P6: 1,250 | Q6: 1,000 | R6: 1,000 | S6: 1,000 | T6: 1,000 | U6: 1,000 | V6: 1,000 | W6: 1,000 | X6: 1,000 | Y6: 1,000 | Z6: 1,000 | AA6: 1,000 | AB6: 1,000 | AC6: 1,000 | AD6: 1,000 | AE6: 1,000 | AF6: 1,000 | AG6: 1,000 | AH6: 1,000 | AI6: 1,000 | AJ6: 1,000 | AK6: 1,000 | AL6: 1,000 | AM6: 1,000 | AN6: 1,000 | AO6: 1,000
B7: Actual | C7: =SUM(E7:AO7) -> 3,650 | E7: =SUM(E11+E14+E17+E20+E23) -> 700 | F7: 650 | G7: 1,400 | H7: 900 | I7: 0 | J7: 0 | K7: 0 | L7: 0 | M7: 0 | N7: 0 | O7: 0 | P7: 0 | Q7: 0 | R7: 0 | S7: 0 | T7: 0 | U7: 0 | V7: 0 | W7: 0 | X7: 0 | Y7: 0 | Z7: 0 | AA7: 0 | AB7: 0 | AC7: 0 | AD7: 0 | AE7: 0 | AF7: 0 | AG7: 0 | AH7: 0 | AI7: 0 | AJ7: 0 | AK7: 0 | AL7: 0 | AM7: 0 | AN7: 0 | AO7: 0
C8: =C6-C7 -> 37,100 | E8: =E6-E7 -> 300 | F8: =F6-F7 -> 350 | G8: 100 | H8: 600 | I8: 1,500 | J8: 1,500 | K8: 1,500 | L8: 1,250 | M8: 1,250 | N8: 1,250 | O8: 1,250 | P8: 1,250 | Q8: 1,000 | R8: 1,000 | S8: 1,000 | T8: 1,000 | U8: 1,000 | V8: 1,000 | W8: 1,000 | X8: 1,000 | Y8: 1,000 | Z8: 1,000 | AA8: 1,000 | AB8: 1,000 | AC8: 1,000 | AD8: 1,000 | AE8: 1,000 | AF8: 1,000 | AG8: 1,000 | AH8: 1,000 | AI8: 1,000 | AJ8: 1,000 | AK8: 1,000 | AL8: 1,000 | AM8: 1,000 | AN8: 1,000 | AO8: 1,000
D9: Duration | E9: =Summary!D8 -> 2014-07-01 | F9: =Summary!E8 -> 2014-08-01 | G9: =Summary!F8 -> 2014-09-01 | H9: =Summary!G8 -> 2014-10-01 | I9: =Summary!H8 -> 2014-11-01 | J9: =Summary!I8 -> 2014-12-01 | K9: =Summary!J8 -> 2015-01-01 | L9: =Summary!K8 -> 2015-02-01 | M9: =Summary!L8 -> 2015-03-01 | N9: =Summary!M8 -> 2015-04-01 | O9: =Summary!N8 -> 2015-05-01 | P9: =Summary!O8 -> 2015-06-01 | Q9: =Summary!P8 -> 2015-07-01 | R9: =Summary!Q8 -> 2015-08-01 | S9: =Summary!R8 -> 2015-09-01 | T9: =Summary!S8 -> 2015-10-01 | U9: =Summary!T8 -> 2015-11-01 | V9: =Summary!U8 -> 2015-12-01 | W9: =Summary!V8 -> 2016-01-01 | X9: =Summary!W8 -> 2016-02-01 | Y9: =Summary!X8 -> 2016-03-01 | Z9: =Summary!Y8 -> 2016-04-01 | AA9: =Summary!Z8 -> 2016-05-01 | AB9: =Summary!AA8 -> 2016-06-01 | AC9: =Summary!AB8 -> 2016-07-01 | AD9: =Summary!AC8 -> 2016-08-01 | AE9: =Summary!AD8 -> 2016-09-01 | AF9: =Summary!AE8 -> 2016-10-01 | AG9: =Summary!AF8 -> 2016-11-01 | AH9: =Summary!AG8 -> 2016-12-01 | AI9: =Summary!AH8 -> 2017-01-01 | AJ9: =Summary!AI8 -> 2017-02-01 | AK9: =Summary!AJ8 -> 2017-03-01 | AL9: =Summary!AK8 -> 2017-04-01 | AM9: =Summary!AL8 -> 2017-05-01 | AN9: =Summary!AM8 -> 2017-06-01 | AO9: =Summary!AN8 -> 2017-07-01
A10: Failure ABC | B10: Budget | C10: =SUM(E10:AO10) -> 37,000 | E10: 1,000 | F10: =E10 -> 1,000 | G10: =F10 -> 1,000 | H10: 1,000 | I10: 1,000 | J10: 1,000 | K10: 1,000 | L10: 1,000 | M10: 1,000 | N10: 1,000 | O10: 1,000 | P10: 1,000 | Q10: 1,000 | R10: 1,000 | S10: 1,000 | T10: 1,000 | U10: 1,000 | V10: 1,000 | W10: 1,000 | X10: 1,000 | Y10: 1,000 | Z10: 1,000 | AA10: 1,000 | AB10: 1,000 | AC10: 1,000 | AD10: 1,000 | AE10: 1,000 | AF10: 1,000 | AG10: 1,000 | AH10: 1,000 | AI10: 1,000 | AJ10: 1,000 | AK10: 1,000 | AL10: 1,000 | AM10: 1,000 | AN10: 1,000 | AO10: =AN10 -> 1,000
B11: Actual | C11: =SUM(E11:AO11) -> 2,550 | E11: 700 | F11: 650 | G11: 600 | H11: 600
C12: =C10-C11 -> 34,450 | E12: =E10-E11 -> 300 | F12: =F10-F11 -> 350 | G12: 400 | H12: 400 | I12: 1,000 | J12: 1,000 | K12: 1,000 | L12: 1,000 | M12: 1,000 | N12: 1,000 | O12: 1,000 | P12: 1,000 | Q12: 1,000 | R12: 1,000 | S12: 1,000 | T12: 1,000 | U12: 1,000 | V12: 1,000 | W12: 1,000 | X12: 1,000 | Y12: 1,000 | Z12: 1,000 | AA12: 1,000 | AB12: 1,000 | AC12: 1,000 | AD12: 1,000 | AE12: 1,000 | AF12: 1,000 | AG12: 1,000 | AH12: 1,000 | AI12: 1,000 | AJ12: 1,000 | AK12: 1,000 | AL12: 1,000 | AM12: 1,000 | AN12: 1,000 | AO12: 1,000
A13: Failure XYZ | B13: Budget | C13: =SUM(E13:AO13) -> 3,750 | E13: 0 | F13: 0 | G13: 500 | H13: =G13 -> 500 | I13: =H13 -> 500 | J13: 500 | K13: 500 | L13: 250 | M13: 250 | N13: 250 | O13: 250 | P13: 250 | Q13: 0 | R13: 0 | S13: 0 | T13: 0 | U13: 0 | V13: 0 | W13: 0 | X13: 0 | Y13: 0 | Z13: 0 | AA13: 0 | AB13: 0 | AC13: 0 | AD13: 0 | AE13: 0 | AF13: 0 | AG13: 0 | AH13: 0 | AI13: 0 | AJ13: 0 | AK13: 0 | AL13: 0 | AM13: 0 | AN13: 0 | AO13: =AN13 -> 0
B14: Actual | C14: =SUM(E14:AO14) -> 500 | G14: 200 | H14: 300
C15: =C13-C14 -> 3,250 | E15: =E13-E14 -> 0 | F15: =F13-F14 -> 0 | G15: 300 | H15: 200 | I15: 500 | J15: 500 | K15: 500 | L15: 250 | M15: 250 | N15: 250 | O15: 250 | P15: 250 | Q15: 0 | R15: 0 | S15: 0 | T15: 0 | U15: 0 | V15: 0 | W15: 0 | X15: 0 | Y15: 0 | Z15: 0 | AA15: 0 | AB15: 0 | AC15: 0 | AD15: 0 | AE15: 0 | AF15: 0 | AG15: 0 | AH15: 0 | AI15: 0 | AJ15: 0 | AK15: 0 | AL15: 0 | AM15: 0 | AN15: 0 | AO15: 0
A16: Failure 123 | B16: Budget | C16: =SUM(E16:AO16) -> 0 | E16: 0 | F16: 0 | G16: 0 | H16: 0 | I16: 0 | J16: 0 | K16: 0 | L16: 0 | M16: 0 | N16: 0 | O16: 0 | P16: 0 | Q16: 0 | R16: 0 | S16: 0 | T16: 0 | U16: 0 | V16: 0 | W16: 0 | X16: 0 | Y16: 0 | Z16: 0 | AA16: 0 | AB16: 0 | AC16: 0 | AD16: 0 | AE16: 0 | AF16: 0 | AG16: 0 | AH16: 0 | AI16: 0 | AJ16: 0 | AK16: 0 | AL16: 0 | AM16: 0 | AN16: 0 | AO16: 0
B17: Actual | C17: =SUM(E17:AO17) -> 600 | G17: 600
C18: =C16-C17 -> -600 | E18: =E16-E17 -> 0 | F18: =F16-F17 -> 0 | G18: =G16-G17 -> -600 | H18: 0 | I18: 0 | J18: 0 | K18: 0 | L18: 0 | M18: 0 | N18: 0 | O18: 0 | P18: 0 | Q18: 0 | R18: 0 | S18: 0 | T18: 0 | U18: 0 | V18: 0 | W18: 0 | X18: 0 | Y18: 0 | Z18: 0 | AA18: 0 | AB18: 0 | AC18: 0 | AD18: 0 | AE18: 0 | AF18: 0 | AG18: 0 | AH18: 0 | AI18: 0 | AJ18: 0 | AK18: 0 | AL18: 0 | AM18: 0 | AN18: 0 | AO18: 0
B19: Budget | C19: =SUM(E19:AO19) -> 0 | E19: 0 | F19: 0 | G19: 0 | H19: 0 | I19: 0 | J19: 0 | K19: 0 | L19: 0 | M19: 0 | N19: 0 | O19: 0 | P19: 0 | Q19: 0 | R19: 0 | S19: 0 | T19: 0 | U19: 0 | V19: 0 | W19: 0 | X19: 0 | Y19: 0 | Z19: 0 | AA19: 0 | AB19: 0 | AC19: 0 | AD19: 0 | AE19: 0 | AF19: 0 | AG19: 0 | AH19: 0 | AI19: 0 | AJ19: 0 | AK19: 0 | AL19: 0 | AM19: 0 | AN19: 0 | AO19: 0
B20: Actual | C20: =SUM(E20:AO20) -> 0
C21: =C19-C20 -> 0 | E21: =E19-E20 -> 0 | F21: =F19-F20 -> 0 | G21: 0 | H21: 0 | I21: 0 | J21: 0 | K21: 0 | L21: 0 | M21: 0 | N21: 0 | O21: 0 | P21: 0 | Q21: 0 | R21: 0 | S21: 0 | T21: 0 | U21: 0 | V21: 0 | W21: 0 | X21: 0 | Y21: 0 | Z21: 0 | AA21: 0 | AB21: 0 | AC21: 0 | AD21: 0 | AE21: 0 | AF21: 0 | AG21: 0 | AH21: 0 | AI21: 0 | AJ21: 0 | AK21: 0 | AL21: 0 | AM21: 0 | AN21: 0 | AO21: 0
B22: Budget | C22: =SUM(E22:AO22) -> 0 | E22: 0 | F22: 0 | G22: 0 | H22: 0 | I22: 0 | J22: 0 | K22: 0 | L22: 0 | M22: 0 | N22: 0 | O22: 0 | P22: 0 | Q22: 0 | R22: 0 | S22: 0 | T22: 0 | U22: 0 | V22: 0 | W22: 0 | X22: 0 | Y22: 0 | Z22: 0 | AA22: 0 | AB22: 0 | AC22: 0 | AD22: 0 | AE22: 0 | AF22: 0 | AG22: 0 | AH22: 0 | AI22: 0 | AJ22: 0 | AK22: 0 | AL22: 0 | AM22: 0 | AN22: 0 | AO22: 0
B23: Actual | C23: =SUM(E23:AO23) -> 0
C24: =C22-C23 -> 0 | E24: =E22-E23 -> 0 | F24: =F22-F23 -> 0 | G24: 0 | H24: 0 | I24: 0 | J24: 0 | K24: 0 | L24: 0 | M24: 0 | N24: 0 | O24: 0 | P24: 0 | Q24: 0 | R24: 0 | S24: 0 | T24: 0 | U24: 0 | V24: 0 | W24: 0 | X24: 0 | Y24: 0 | Z24: 0 | AA24: 0 | AB24: 0 | AC24: 0 | AD24: 0 | AE24: 0 | AF24: 0 | AG24: 0 | AH24: 0 | AI24: 0 | AJ24: 0 | AK24: 0 | AL24: 0 | AM24: 0 | AN24: 0 | AO24: 0
B25: Budget | C25: =SUM(E25:AO25) -> 0 | E25: 0 | F25: 0 | G25: 0 | H25: 0 | I25: 0 | J25: 0 | K25: 0 | L25: 0 | M25: 0 | N25: 0 | O25: 0 | P25: 0 | Q25: 0 | R25: 0 | S25: 0 | T25: 0 | U25: 0 | V25: 0 | W25: 0 | X25: 0 | Y25: 0 | Z25: 0 | AA25: 0 | AB25: 0 | AC25: 0 | AD25: 0 | AE25: 0 | AF25: 0 | AG25: 0 | AH25: 0 | AI25: 0 | AJ25: 0 | AK25: 0 | AL25: 0 | AM25: 0 | AN25: 0 | AO25: 0
B26: Actual | C26: =SUM(E26:AO26) -> 0
C27: =C25-C26 -> 0 | E27: =E25-E26 -> 0 | F27: =F25-F26 -> 0 | G27: 0 | H27: 0 | I27: 0 | J27: 0 | K27: 0 | L27: 0 | M27: 0 | N27: 0 | O27: 0 | P27: 0 | Q27: 0 | R27: 0 | S27: 0 | T27: 0 | U27: 0 | V27: 0 | W27: 0 | X27: 0 | Y27: 0 | Z27: 0 | AA27: 0 | AB27: 0 | AC27: 0 | AD27: 0 | AE27: 0 | AF27: 0 | AG27: 0 | AH27: 0 | AI27: 0 | AJ27: 0 | AK27: 0 | AL27: 0 | AM27: 0 | AN27: 0 | AO27: 0
B28: Budget | C28: =SUM(E28:AO28) -> 0 | E28: 0 | F28: 0 | G28: 0 | H28: 0 | I28: 0 | J28: 0 | K28: 0 | L28: 0 | M28: 0 | N28: 0 | O28: 0 | P28: 0 | Q28: 0 | R28: 0 | S28: 0 | T28: 0 | U28: 0 | V28: 0 | W28: 0 | X28: 0 | Y28: 0 | Z28: 0 | AA28: 0 | AB28: 0 | AC28: 0 | AD28: 0 | AE28: 0 | AF28: 0 | AG28: 0 | AH28: 0 | AI28: 0 | AJ28: 0 | AK28: 0 | AL28: 0 | AM28: 0 | AN28: 0 | AO28: 0
B29: Actual | C29: =SUM(E29:AO29) -> 0
C30: =C28-C29 -> 0 | E30: =E28-E29 -> 0 | F30: =F28-F29 -> 0 | G30: 0 | H30: 0 | I30: 0 | J30: 0 | K30: 0 | L30: 0 | M30: 0 | N30: 0 | O30: 0 | P30: 0 | Q30: 0 | R30: 0 | S30: 0 | T30: 0 | U30: 0 | V30: 0 | W30: 0 | X30: 0 | Y30: 0 | Z30: 0 | AA30: 0 | AB30: 0 | AC30: 0 | AD30: 0 | AE30: 0 | AF30: 0 | AG30: 0 | AH30: 0 | AI30: 0 | AJ30: 0 | AK30: 0 | AL30: 0 | AM30: 0 | AN30: 0 | AO30: 0
B31: Budget | C31: =SUM(E31:AO31) -> 0 | E31: 0 | F31: 0 | G31: 0 | H31: 0 | I31: 0 | J31: 0 | K31: 0 | L31: 0 | M31: 0 | N31: 0 | O31: 0 | P31: 0 | Q31: 0 | R31: 0 | S31: 0 | T31: 0 | U31: 0 | V31: 0 | W31: 0 | X31: 0 | Y31: 0 | Z31: 0 | AA31: 0 | AB31: 0 | AC31: 0 | AD31: 0 | AE31: 0 | AF31: 0 | AG31: 0 | AH31: 0 | AI31: 0 | AJ31: 0 | AK31: 0 | AL31: 0 | AM31: 0 | AN31: 0 | AO31: 0
B32: Actual | C32: =SUM(E32:AO32) -> 0
C33: =C31-C32 -> 0 | E33: =E31-E32 -> 0 | F33: =F31-F32 -> 0 | G33: 0 | H33: 0 | I33: 0 | J33: 0 | K33: 0 | L33: 0 | M33: 0 | N33: 0 | O33: 0 | P33: 0 | Q33: 0 | R33: 0 | S33: 0 | T33: 0 | U33: 0 | V33: 0 | W33: 0 | X33: 0 | Y33: 0 | Z33: 0 | AA33: 0 | AB33: 0 | AC33: 0 | AD33: 0 | AE33: 0 | AF33: 0 | AG33: 0 | AH33: 0 | AI33: 0 | AJ33: 0 | AK33: 0 | AL33: 0 | AM33: 0 | AN33: =AN31-AN32 -> 0 | AO33: 0
B34: Budget | C34: =SUM(E34:AO34) -> 0 | E34: 0 | F34: 0 | G34: 0 | H34: 0 | I34: 0 | J34: 0 | K34: 0 | L34: 0 | M34: 0 | N34: 0 | O34: 0 | P34: 0 | Q34: 0 | R34: 0 | S34: 0 | T34: 0 | U34: 0 | V34: 0 | W34: 0 | X34: 0 | Y34: 0 | Z34: 0 | AA34: 0 | AB34: 0 | AC34: 0 | AD34: 0 | AE34: 0 | AF34: 0 | AG34: 0 | AH34: 0 | AI34: 0 | AJ34: 0 | AK34: 0 | AL34: 0 | AM34: 0 | AN34: 0 | AO34: 0
B35: Actual | C35: =SUM(E35:AO35) -> 0
C36: =C34-C35 -> 0 | E36: =E34-E35 -> 0 | F36: =F34-F35 -> 0 | G36: 0 | H36: 0 | I36: 0 | J36: 0 | K36: 0 | L36: 0 | M36: 0 | N36: 0 | O36: 0 | P36: 0 | Q36: 0 | R36: 0 | S36: 0 | T36: 0 | U36: 0 | V36: 0 | W36: 0 | X36: 0 | Y36: 0 | Z36: 0 | AA36: 0 | AB36: 0 | AC36: 0 | AD36: 0 | AE36: 0 | AF36: 0 | AG36: 0 | AH36: 0 | AI36: 0 | AJ36: 0 | AK36: 0 | AL36: 0 | AM36: 0 | AN36: =AN34-AN35 -> 0 | AO36: 0

Sheet External
A1: External Failure Cost | E1: These are costs that would disappear if no defects existed in the product after delivery to the client. These costs include warranty and repair costs, product liability, and product recall.
A6: Total | B6: Budget | C6: =SUM(E6:AO6) -> 0 | E6: =SUM(E10+E13+E16+E19+E22) -> 0 | F6: =SUM(F10+F13+F16+F19+F22) -> 0 | G6: 0 | H6: 0 | I6: 0 | J6: 0 | K6: 0 | L6: 0 | M6: 0 | N6: 0 | O6: =SUM(O10+O13+O16+O19+O22+O25+O28+O31+O34) -> 0 | P6: =SUM(P10+P13+P16+P19+P22+P25+P28+P31+P34) -> 0 | Q6: 0 | R6: 0 | S6: 0 | T6: 0 | U6: 0 | V6: 0 | W6: 0 | X6: 0 | Y6: 0 | Z6: 0 | AA6: 0 | AB6: 0 | AC6: 0 | AD6: 0 | AE6: 0 | AF6: 0 | AG6: 0 | AH6: 0 | AI6: 0 | AJ6: 0 | AK6: 0 | AL6: 0 | AM6: 0 | AN6: 0 | AO6: =SUM(AO10+AO13+AO16+AO19+AO22+AO25+AO28+AO31+AO34) -> 0
B7: Actual | C7: =SUM(E7:AO7) -> 0 | E7: =SUM(E11+E14+E17+E20+E23+E25+E28+E31+E34) -> 0 | F7: =SUM(F11+F14+F17+F20+F23+F25+F28+F31+F34) -> 0 | G7: 0 | H7: 0 | I7: 0 | J7: 0 | K7: 0 | L7: 0 | M7: 0 | N7: 0 | O7: 0 | P7: 0 | Q7: 0 | R7: 0 | S7: 0 | T7: 0 | U7: 0 | V7: 0 | W7: 0 | X7: 0 | Y7: 0 | Z7: 0 | AA7: 0 | AB7: 0 | AC7: 0 | AD7: 0 | AE7: 0 | AF7: 0 | AG7: 0 | AH7: 0 | AI7: 0 | AJ7: 0 | AK7: 0 | AL7: 0 | AM7: 0 | AN7: 0 | AO7: =SUM(AO11+AO14+AO17+AO20+AO23+AO26+AO29+AO32+AO35) -> 0
C8: =C6-C7 -> 0 | E8: =E6-E7 -> 0 | F8: =F6-F7 -> 0 | G8: 0 | H8: 0 | I8: 0 | J8: 0 | K8: 0 | L8: 0 | M8: 0 | N8: 0 | O8: 0 | P8: 0 | Q8: 0 | R8: 0 | S8: 0 | T8: 0 | U8: 0 | V8: 0 | W8: 0 | X8: 0 | Y8: 0 | Z8: 0 | AA8: 0 | AB8: 0 | AC8: 0 | AD8: 0 | AE8: 0 | AF8: 0 | AG8: 0 | AH8: 0 | AI8: 0 | AJ8: 0 | AK8: 0 | AL8: 0 | AM8: 0 | AN8: 0 | AO8: 0
D9: Duration | E9: =Summary!D8 -> 2014-07-01 | F9: =Summary!E8 -> 2014-08-01 | G9: =Summary!F8 -> 2014-09-01 | H9: =Summary!G8 -> 2014-10-01 | I9: =Summary!H8 -> 2014-11-01 | J9: =Summary!I8 -> 2014-12-01 | K9: =Summary!J8 -> 2015-01-01 | L9: =Summary!K8 -> 2015-02-01 | M9: =Summary!L8 -> 2015-03-01 | N9: =Summary!M8 -> 2015-04-01 | O9: =Summary!N8 -> 2015-05-01 | P9: =Summary!O8 -> 2015-06-01 | Q9: =Summary!P8 -> 2015-07-01 | R9: =Summary!Q8 -> 2015-08-01 | S9: =Summary!R8 -> 2015-09-01 | T9: =Summary!S8 -> 2015-10-01 | U9: =Summary!T8 -> 2015-11-01 | V9: =Summary!U8 -> 2015-12-01 | W9: =Summary!V8 -> 2016-01-01 | X9: =Summary!W8 -> 2016-02-01 | Y9: =Summary!X8 -> 2016-03-01 | Z9: =Summary!Y8 -> 2016-04-01 | AA9: =Summary!Z8 -> 2016-05-01 | AB9: =Summary!AA8 -> 2016-06-01 | AC9: =Summary!AB8 -> 2016-07-01 | AD9: =Summary!AC8 -> 2016-08-01 | AE9: =Summary!AD8 -> 2016-09-01 | AF9: =Summary!AE8 -> 2016-10-01 | AG9: =Summary!AF8 -> 2016-11-01 | AH9: =Summary!AG8 -> 2016-12-01 | AI9: =Summary!AH8 -> 2017-01-01 | AJ9: =Summary!AI8 -> 2017-02-01 | AK9: =Summary!AJ8 -> 2017-03-01 | AL9: =Summary!AK8 -> 2017-04-01 | AM9: =Summary!AL8 -> 2017-05-01 | AN9: =Summary!AM8 -> 2017-06-01 | AO9: =Summary!AN8 -> 2017-07-01
B10: Budget | C10: =SUM(E10:AO10) -> 0 | F10: 0 | G10: 0 | H10: 0 | I10: 0 | J10: 0 | K10: 0 | L10: 0 | M10: 0 | N10: 0 | O10: 0 | P10: 0 | Q10: 0 | R10: 0 | S10: 0 | T10: 0 | U10: 0 | V10: 0 | W10: 0 | X10: 0 | Y10: 0 | Z10: 0 | AA10: 0 | AB10: 0 | AC10: 0 | AD10: 0 | AE10: 0 | AF10: 0 | AG10: 0 | AH10: 0 | AI10: 0 | AJ10: 0 | AK10: 0 | AL10: 0 | AM10: 0 | AN10: 0 | AO10: 0
B11: Actual | C11: =SUM(E11:AO11) -> 0
C12: =C10-C11 -> 0 | E12: =E10-E11 -> 0 | F12: =F10-F11 -> 0 | G12: =G10-G11 -> 0 | H12: 0 | I12: 0 | J12: 0 | K12: 0 | L12: 0 | M12: 0 | N12: 0 | O12: 0 | P12: 0 | Q12: 0 | R12: 0 | S12: 0 | T12: 0 | U12: 0 | V12: 0 | W12: 0 | X12: 0 | Y12: 0 | Z12: 0 | AA12: 0 | AB12: 0 | AC12: 0 | AD12: 0 | AE12: 0 | AF12: 0 | AG12: 0 | AH12: 0 | AI12: 0 | AJ12: 0 | AK12: 0 | AL12: 0 | AM12: 0 | AN12: 0 | AO12: 0
B13: Budget | C13: =SUM(E13:AO13) -> 0 | F13: 0 | G13: 0 | H13: 0 | I13: 0 | J13: 0 | K13: 0 | L13: 0 | M13: 0 | N13: 0 | O13: 0 | P13: 0 | Q13: 0 | R13: 0 | S13: 0 | T13: 0 | U13: 0 | V13: 0 | W13: 0 | X13: 0 | Y13: 0 | Z13: 0 | AA13: 0 | AB13: 0 | AC13: 0 | AD13: 0 | AE13: 0 | AF13: 0 | AG13: 0 | AH13: 0 | AI13: 0 | AJ13: 0 | AK13: 0 | AL13: 0 | AM13: 0 | AN13: 0 | AO13: 0
B14: Actual | C14: =SUM(E14:AO14) -> 0
C15: =C13-C14 -> 0 | E15: =E13-E14 -> 0 | F15: =F13-F14 -> 0 | G15: =G13-G14 -> 0 | H15: 0 | I15: 0 | J15: 0 | K15: 0 | L15: 0 | M15: 0 | N15: 0 | O15: 0 | P15: 0 | Q15: 0 | R15: 0 | S15: 0 | T15: 0 | U15: 0 | V15: 0 | W15: 0 | X15: 0 | Y15: 0 | Z15: 0 | AA15: 0 | AB15: 0 | AC15: 0 | AD15: 0 | AE15: 0 | AF15: 0 | AG15: 0 | AH15: 0 | AI15: 0 | AJ15: 0 | AK15: 0 | AL15: 0 | AM15: 0 | AN15: 0 | AO15: 0
B16: Budget | C16: =SUM(E16:AO16) -> 0 | F16: 0 | G16: 0 | H16: 0 | I16: 0 | J16: 0 | K16: 0 | L16: 0 | M16: 0 | N16: 0 | O16: 0 | P16: 0 | Q16: 0 | R16: 0 | S16: 0 | T16: 0 | U16: 0 | V16: 0 | W16: 0 | X16: 0 | Y16: 0 | Z16: 0 | AA16: 0 | AB16: 0 | AC16: 0 | AD16: 0 | AE16: 0 | AF16: 0 | AG16: 0 | AH16: 0 | AI16: 0 | AJ16: 0 | AK16: 0 | AL16: 0 | AM16: 0 | AN16: 0 | AO16: 0
B17: Actual | C17: =SUM(E17:AO17) -> 0
C18: =C16-C17 -> 0 | E18: =E16-E17 -> 0 | F18: =F16-F17 -> 0 | G18: =G16-G17 -> 0 | H18: 0 | I18: 0 | J18: 0 | K18: 0 | L18: 0 | M18: 0 | N18: 0 | O18: 0 | P18: 0 | Q18: 0 | R18: 0 | S18: 0 | T18: 0 | U18: 0 | V18: 0 | W18: 0 | X18: 0 | Y18: 0 | Z18: 0 | AA18: 0 | AB18: 0 | AC18: 0 | AD18: 0 | AE18: 0 | AF18: 0 | AG18: 0 | AH18: 0 | AI18: 0 | AJ18: 0 | AK18: 0 | AL18: 0 | AM18: 0 | AN18: 0 | AO18: 0
B19: Budget | C19: =SUM(E19:AO19) -> 0 | F19: 0 | G19: 0 | H19: 0 | I19: 0 | J19: 0 | K19: 0 | L19: 0 | M19: 0 | N19: 0 | O19: 0 | P19: 0 | Q19: 0 | R19: 0 | S19: 0 | T19: 0 | U19: 0 | V19: 0 | W19: 0 | X19: 0 | Y19: 0 | Z19: 0 | AA19: 0 | AB19: 0 | AC19: 0 | AD19: 0 | AE19: 0 | AF19: 0 | AG19: 0 | AH19: 0 | AI19: 0 | AJ19: 0 | AK19: 0 | AL19: 0 | AM19: 0 | AN19: 0 | AO19: 0
B20: Actual | C20: =SUM(E20:AO20) -> 0
C21: =C19-C20 -> 0 | E21: =E19-E20 -> 0 | F21: =F19-F20 -> 0 | G21: =G19-G20 -> 0 | H21: 0 | I21: 0 | J21: 0 | K21: 0 | L21: 0 | M21: 0 | N21: 0 | O21: 0 | P21: 0 | Q21: 0 | R21: 0 | S21: 0 | T21: 0 | U21: 0 | V21: 0 | W21: 0 | X21: 0 | Y21: 0 | Z21: 0 | AA21: 0 | AB21: 0 | AC21: 0 | AD21: 0 | AE21: 0 | AF21: 0 | AG21: 0 | AH21: 0 | AI21: 0 | AJ21: 0 | AK21: 0 | AL21: 0 | AM21: 0 | AN21: 0 | AO21: 0
B22: Budget | C22: =SUM(E22:AO22) -> 0 | F22: 0 | G22: 0 | H22: 0 | I22: 0 | J22: 0 | K22: 0 | L22: 0 | M22: 0 | N22: 0 | O22: 0 | P22: 0 | Q22: 0 | R22: 0 | S22: 0 | T22: 0 | U22: 0 | V22: 0 | W22: 0 | X22: 0 | Y22: 0 | Z22: 0 | AA22: 0 | AB22: 0 | AC22: 0 | AD22: 0 | AE22: 0 | AF22: 0 | AG22: 0 | AH22: 0 | AI22: 0 | AJ22: 0 | AK22: 0 | AL22: 0 | AM22: 0 | AN22: 0 | AO22: 0
B23: Actual | C23: =SUM(E23:AO23) -> 0
C24: =C22-C23 -> 0 | E24: =E22-E23 -> 0 | F24: =F22-F23 -> 0 | G24: =G22-G23 -> 0 | H24: 0 | I24: 0 | J24: 0 | K24: 0 | L24: 0 | M24: 0 | N24: 0 | O24: 0 | P24: 0 | Q24: 0 | R24: 0 | S24: 0 | T24: 0 | U24: 0 | V24: 0 | W24: 0 | X24: 0 | Y24: 0 | Z24: 0 | AA24: 0 | AB24: 0 | AC24: 0 | AD24: 0 | AE24: 0 | AF24: 0 | AG24: 0 | AH24: 0 | AI24: 0 | AJ24: 0 | AK24: 0 | AL24: 0 | AM24: 0 | AN24: 0 | AO24: 0
B25: Budget | C25: =SUM(E25:AO25) -> 0 | F25: 0 | G25: 0 | H25: 0 | I25: 0 | J25: 0 | K25: 0 | L25: 0 | M25: 0 | N25: 0 | O25: 0 | P25: 0 | Q25: 0 | R25: 0 | S25: 0 | T25: 0 | U25: 0 | V25: 0 | W25: 0 | X25: 0 | Y25: 0 | Z25: 0 | AA25: 0 | AB25: 0 | AC25: 0 | AD25: 0 | AE25: 0 | AF25: 0 | AG25: 0 | AH25: 0 | AI25: 0 | AJ25: 0 | AK25: 0 | AL25: 0 | AM25: 0 | AN25: 0 | AO25: 0
B26: Actual | C26: =SUM(E26:AO26) -> 0
C27: =C25-C26 -> 0 | E27: =E25-E26 -> 0 | F27: =F25-F26 -> 0 | G27: =G25-G26 -> 0 | H27: 0 | I27: 0 | J27: 0 | K27: 0 | L27: 0 | M27: 0 | N27: 0 | O27: 0 | P27: 0 | Q27: 0 | R27: 0 | S27: 0 | T27: 0 | U27: 0 | V27: 0 | W27: 0 | X27: 0 | Y27: 0 | Z27: 0 | AA27: 0 | AB27: 0 | AC27: 0 | AD27: 0 | AE27: 0 | AF27: 0 | AG27: 0 | AH27: 0 | AI27: 0 | AJ27: 0 | AK27: 0 | AL27: 0 | AM27: 0 | AN27: 0 | AO27: 0
B28: Budget | C28: =SUM(E28:AO28) -> 0 | F28: 0 | G28: 0 | H28: 0 | I28: 0 | J28: 0 | K28: 0 | L28: 0 | M28: 0 | N28: 0 | O28: 0 | P28: 0 | Q28: 0 | R28: 0 | S28: 0 | T28: 0 | U28: 0 | V28: 0 | W28: 0 | X28: 0 | Y28: 0 | Z28: 0 | AA28: 0 | AB28: 0 | AC28: 0 | AD28: 0 | AE28: 0 | AF28: 0 | AG28: 0 | AH28: 0 | AI28: 0 | AJ28: 0 | AK28: 0 | AL28: 0 | AM28: 0 | AN28: 0 | AO28: 0
B29: Actual | C29: =SUM(E29:AO29) -> 0
C30: =C28-C29 -> 0 | E30: =E28-E29 -> 0 | F30: =F28-F29 -> 0 | G30: =G28-G29 -> 0 | H30: 0 | I30: 0 | J30: 0 | K30: 0 | L30: 0 | M30: 0 | N30: 0 | O30: 0 | P30: 0 | Q30: 0 | R30: 0 | S30: 0 | T30: 0 | U30: 0 | V30: 0 | W30: 0 | X30: 0 | Y30: 0 | Z30: 0 | AA30: 0 | AB30: 0 | AC30: 0 | AD30: 0 | AE30: 0 | AF30: 0 | AG30: 0 | AH30: 0 | AI30: 0 | AJ30: 0 | AK30: 0 | AL30: 0 | AM30: 0 | AN30: 0 | AO30: 0
B31: Budget | C31: =SUM(E31:AO31) -> 0 | F31: 0 | G31: 0 | H31: 0 | I31: 0 | J31: 0 | K31: 0 | L31: 0 | M31: 0 | N31: 0 | O31: 0 | P31: 0 | Q31: 0 | R31: 0 | S31: 0 | T31: 0 | U31: 0 | V31: 0 | W31: 0 | X31: 0 | Y31: 0 | Z31: 0 | AA31: 0 | AB31: 0 | AC31: 0 | AD31: 0 | AE31: 0 | AF31: 0 | AG31: 0 | AH31: 0 | AI31: 0 | AJ31: 0 | AK31: 0 | AL31: 0 | AM31: 0 | AN31: 0 | AO31: 0
B32: Actual | C32: =SUM(E32:AO32) -> 0
C33: =C31-C32 -> 0 | E33: =E31-E32 -> 0 | F33: =F31-F32 -> 0 | G33: =G31-G32 -> 0 | H33: 0 | I33: 0 | J33: 0 | K33: 0 | L33: 0 | M33: 0 | N33: 0 | O33: 0 | P33: 0 | Q33: 0 | R33: 0 | S33: 0 | T33: 0 | U33: 0 | V33: 0 | W33: 0 | X33: 0 | Y33: 0 | Z33: 0 | AA33: 0 | AB33: 0 | AC33: 0 | AD33: 0 | AE33: 0 | AF33: 0 | AG33: 0 | AH33: 0 | AI33: 0 | AJ33: 0 | AK33: 0 | AL33: 0 | AM33: 0 | AN33: 0 | AO33: 0
B34: Budget | C34: =SUM(E34:AO34) -> 0 | F34: 0 | G34: 0 | H34: 0 | I34: 0 | J34: 0 | K34: 0 | L34: 0 | M34: 0 | N34: 0 | O34: 0 | P34: 0 | Q34: 0 | R34: 0 | S34: 0 | T34: 0 | U34: 0 | V34: 0 | W34: 0 | X34: 0 | Y34: 0 | Z34: 0 | AA34: 0 | AB34: 0 | AC34: 0 | AD34: 0 | AE34: 0 | AF34: 0 | AG34: 0 | AH34: 0 | AI34: 0 | AJ34: 0 | AK34: 0 | AL34: 0 | AM34: 0 | AN34: 0 | AO34: 0
B35: Actual | C35: =SUM(E35:AO35) -> 0
C36: =C34-C35 -> 0 | E36: =E34-E35 -> 0 | F36: =F34-F35 -> 0 | G36: =G34-G35 -> 0 | H36: 0 | I36: 0 | J36: 0 | K36: 0 | L36: 0 | M36: 0 | N36: 0 | O36: 0 | P36: 0 | Q36: 0 | R36: 0 | S36: 0 | T36: 0 | U36: 0 | V36: 0 | W36: 0 | X36: 0 | Y36: 0 | Z36: 0 | AA36: 0 | AB36: 0 | AC36: 0 | AD36: 0 | AE36: 0 | AF36: 0 | AG36: 0 | AH36: 0 | AI36: 0 | AJ36: 0 | AK36: 0 | AL36: 0 | AM36: 0 | AN36: 0 | AO36: 0
